Department family,Entity,Date,Expense type,Expense area,Supplier,Transaction number,Amount,VAT registration number,
Department for Business Innovation and Skills,Intellectual Property Office,24/10/2014,Computer Capital,Transformational Change,Insight Direct (UK) Ltd,2069169,6426.82,Not applicable,
Department for Business Innovation and Skills,Intellectual Property Office,28/10/2014,Computer Capital,Transformational Change,Insight Direct (UK) Ltd,2075291,37865.95,Not applicable,
Department for Business Innovation and Skills,Intellectual Property Office,06/10/2014,Agency Staff,Copyright and IP Enforcement Directorate,Michael Page International Recruitment Ltd,5711876,17.04,Not applicable,
Department for Business Innovation and Skills,Intellectual Property Office,09/10/2014,Agency Staff,Trade Marks Directorate,Brook Street (UK) Ltd,30667648,25.02,Not applicable,
Department for Business Innovation and Skills,Intellectual Property Office,09/10/2014,Agency Staff,Trade Marks Directorate,Brook Street (UK) Ltd,30667649,26.90,Not applicable,
Department for Business Innovation and Skills,Intellectual Property Office,09/10/2014,Agency Staff,Trade Marks Directorate,Brook Street (UK) Ltd,30667646,34.74,Not applicable,
Department for Business Innovation and Skills,Intellectual Property Office,09/10/2014,Agency Staff,Trade Marks Directorate,Brook Street (UK) Ltd,30667647,35.47,Not applicable,
Department for Business Innovation and Skills,Intellectual Property Office,07/10/2014,Agency Staff,Patents Directorate,Brook Street (UK) Ltd,30622129,272.46,Not applicable,
Department for Business Innovation and Skills,Intellectual Property Office,28/10/2014,Agency Staff,"People, Property and Services Directorate",Hays Specialist Recruitment,1004822385,359.72,Not applicable,
Department for Business Innovation and Skills,Intellectual Property Office,17/10/2014,Agency Staff,"People, Property and Services Directorate",Brook Street (UK) Ltd,30682622,415.86,Not applicable,
Department for Business Innovation and Skills,Intellectual Property Office,24/10/2014,Agency Staff,Patents Directorate,Brook Street (UK) Ltd,30694255,430.20,Not applicable,
Department for Business Innovation and Skills,Intellectual Property Office,07/10/2014,Agency Staff,Business Support Directorate,Brook Street (UK) Ltd,30622129,472.01,Not applicable,
Department for Business Innovation and Skills,Intellectual Property Office,07/10/2014,Agency Staff,"People, Property and Services Directorate",Brook Street (UK) Ltd,30658368,473.22,Not applicable,
Department for Business Innovation and Skills,Intellectual Property Office,07/10/2014,Agency Staff,International Policy Directorate,Brook Street (UK) Ltd,30658369,488.54,Not applicable,
Department for Business Innovation and Skills,Intellectual Property Office,24/10/2014,Agency Staff,Trade Marks Directorate,Brook Street (UK) Ltd,30694255,491.29,Not applicable,
Department for Business Innovation and Skills,Intellectual Property Office,07/10/2014,Agency Staff,Trade Marks Directorate,Brook Street (UK) Ltd,30633910,491.95,Not applicable,
Department for Business Innovation and Skills,Intellectual Property Office,07/10/2014,Agency Staff,Business Support Directorate,Brook Street (UK) Ltd,30633910,491.96,Not applicable,
Department for Business Innovation and Skills,Intellectual Property Office,07/10/2014,Agency Staff,Trade Marks Directorate,Brook Street (UK) Ltd,30622129,495.28,Not applicable,
Department for Business Innovation and Skills,Intellectual Property Office,07/10/2014,Agency Staff,Central Support,Brook Street (UK) Ltd,30622129,512.65,Not applicable,
Department for Business Innovation and Skills,Intellectual Property Office,14/10/2014,Agency Staff,"People, Property and Services Directorate",Brook Street (UK) Ltd,30670410,512.65,Not applicable,
Department for Business Innovation and Skills,Intellectual Property Office,07/10/2014,Agency Staff,Central Support,Brook Street (UK) Ltd,30658368,530.58,Not applicable,
Department for Business Innovation and Skills,Intellectual Property Office,14/10/2014,Agency Staff,Central Support,Brook Street (UK) Ltd,30670410,530.58,Not applicable,
Department for Business Innovation and Skills,Intellectual Property Office,07/10/2014,Agency Staff,Patents Directorate,Brook Street (UK) Ltd,30633910,537.74,Not applicable,
Department for Business Innovation and Skills,Intellectual Property Office,07/10/2014,Agency Staff,Patents Directorate,Brook Street (UK) Ltd,30658368,537.74,Not applicable,
Department for Business Innovation and Skills,Intellectual Property Office,14/10/2014,Agency Staff,Patents Directorate,Brook Street (UK) Ltd,30670410,537.74,Not applicable,
Department for Business Innovation and Skills,Intellectual Property Office,17/10/2014,Agency Staff,Patents Directorate,Brook Street (UK) Ltd,30682622,537.74,Not applicable,
Department for Business Innovation and Skills,Intellectual Property Office,07/10/2014,Agency Staff,Central Support,Brook Street (UK) Ltd,30633910,559.26,Not applicable,
Department for Business Innovation and Skills,Intellectual Property Office,07/10/2014,Agency Staff,"People, Property and Services Directorate",Brook Street (UK) Ltd,30633910,566.42,Not applicable,
Department for Business Innovation and Skills,Intellectual Property Office,07/10/2014,Agency Staff,"People, Property and Services Directorate",Brook Street (UK) Ltd,30622129,573.60,Not applicable,
Department for Business Innovation and Skills,Intellectual Property Office,03/10/2014,Agency Staff,"People, Property and Services Directorate",Hays Specialist Recruitment,1004744738,586.61,Not applicable,
Department for Business Innovation and Skills,Intellectual Property Office,13/10/2014,Agency Staff,"People, Property and Services Directorate",Hays Specialist Recruitment,1004771459,589.75,Not applicable,
Department for Business Innovation and Skills,Intellectual Property Office,24/10/2014,Agency Staff,"People, Property and Services Directorate",Brook Street (UK) Ltd,30694255,822.31,Not applicable,
Department for Business Innovation and Skills,Intellectual Property Office,07/10/2014,Agency Staff,Trade Marks Directorate,Brook Street (UK) Ltd,30622129,842.61,Not applicable,
Department for Business Innovation and Skills,Intellectual Property Office,01/10/2014,Agency Staff,Copyright and IP Enforcement Directorate,Michael Page International Recruitment Ltd,5708733,885.78,Not applicable,
Department for Business Innovation and Skills,Intellectual Property Office,06/10/2014,Agency Staff,Copyright and IP Enforcement Directorate,Michael Page International Recruitment Ltd,5711882,885.78,Not applicable,
Department for Business Innovation and Skills,Intellectual Property Office,20/10/2014,Agency Staff,Copyright and IP Enforcement Directorate,Michael Page International Recruitment Ltd,5719292,885.78,Not applicable,
Department for Business Innovation and Skills,Intellectual Property Office,13/10/2014,Agency Staff,Copyright and IP Enforcement Directorate,Michael Page International Recruitment Ltd,5715896,896.33,Not applicable,
Department for Business Innovation and Skills,Intellectual Property Office,27/10/2014,Agency Staff,Copyright and IP Enforcement Directorate,Michael Page International Recruitment Ltd,5723227,896.33,Not applicable,
Department for Business Innovation and Skills,Intellectual Property Office,17/10/2014,Agency Staff,"People, Property and Services Directorate",Brook Street (UK) Ltd,30682622,913.68,Not applicable,
Department for Business Innovation and Skills,Intellectual Property Office,07/10/2014,Agency Staff,"People, Property and Services Directorate",Brook Street (UK) Ltd,30633910,920.45,Not applicable,
Department for Business Innovation and Skills,Intellectual Property Office,24/10/2014,Agency Staff,Trade Marks Directorate,Brook Street (UK) Ltd,30694255,943.01,Not applicable,
Department for Business Innovation and Skills,Intellectual Property Office,17/10/2014,Agency Staff,Trade Marks Directorate,Brook Street (UK) Ltd,30682622,949.26,Not applicable,
Department for Business Innovation and Skills,Intellectual Property Office,07/10/2014,Agency Staff,Trade Marks Directorate,Brook Street (UK) Ltd,30658368,964.78,Not applicable,
Department for Business Innovation and Skills,Intellectual Property Office,15/10/2014,Agency Staff,Copyright and IP Enforcement Directorate,Michael Page International Recruitment Ltd,5700912,970.14,Not applicable,
Department for Business Innovation and Skills,Intellectual Property Office,14/10/2014,Agency Staff,"People, Property and Services Directorate",Brook Street (UK) Ltd,30670410,1015.20,Not applicable,
Department for Business Innovation and Skills,Intellectual Property Office,07/10/2014,Agency Staff,"People, Property and Services Directorate",Brook Street (UK) Ltd,30658368,1015.20,Not applicable,
Department for Business Innovation and Skills,Intellectual Property Office,07/10/2014,Agency Staff,"People, Property and Services Directorate",Brook Street (UK) Ltd,30622129,1028.74,Not applicable,
Department for Business Innovation and Skills,Intellectual Property Office,14/10/2014,Agency Staff,Trade Marks Directorate,Brook Street (UK) Ltd,30670410,1029.07,Not applicable,
Department for Business Innovation and Skills,Intellectual Property Office,08/10/2014,Agency Staff,Copyright and IP Enforcement Directorate,Michael Page International Recruitment Ltd,5712562,1147.10,Not applicable,
Department for Business Innovation and Skills,Intellectual Property Office,07/10/2014,Agency Staff,Trade Marks Directorate,Brook Street (UK) Ltd,30633910,1401.18,Not applicable,
Department for Business Innovation and Skills,Intellectual Property Office,24/10/2014,Overtime,Innovation Directorate,Department For Business Innovation & Skills,6.1511E+11,765.95,Not applicable,
Department for Business Innovation and Skills,Intellectual Property Office,03/10/2014,Bonus Provision,"People, Property and Services Directorate",Office for National Statistics,1029189,692.00,Not applicable,
Department for Business Innovation and Skills,Intellectual Property Office,14/10/2014,Training,"People, Property and Services Directorate",Capital Law LLP,20028565,30.00,Not applicable,
Department for Business Innovation and Skills,Intellectual Property Office,10/10/2014,Training,"People, Property and Services Directorate",Capital Law LLP,20028564,30.00,Not applicable,
Department for Business Innovation and Skills,Intellectual Property Office,13/10/2014,Training,"People, Property and Services Directorate",Capital Law LLP,20058563,30.00,Not applicable,
Department for Business Innovation and Skills,Intellectual Property Office,03/10/2014,Training,"People, Property and Services Directorate",Quadrilect Ltd,27263,75.00,Not applicable,
Department for Business Innovation and Skills,Intellectual Property Office,23/10/2014,Training,Trade Marks Directorate,Business Language Services Ltd,14114,85.00,Not applicable,
Department for Business Innovation and Skills,Intellectual Property Office,08/10/2014,Training,"People, Property and Services Directorate",OEE Consulting Ltd,51210,95.00,Not applicable,
Department for Business Innovation and Skills,Intellectual Property Office,08/10/2014,Training,Patents Directorate,OEE Consulting Ltd,51210,95.00,Not applicable,
Department for Business Innovation and Skills,Intellectual Property Office,30/10/2014,Training,Patents Directorate,Capita Business Services  Ltd,X51174,108.00,Not applicable,
Department for Business Innovation and Skills,Intellectual Property Office,30/10/2014,Training,Innovation Directorate,Capita Business Services  Ltd,X51177,108.00,Not applicable,
Department for Business Innovation and Skills,Intellectual Property Office,30/10/2014,Training,Patents Directorate,Capita Business Services  Ltd,X51173,108.00,Not applicable,
Department for Business Innovation and Skills,Intellectual Property Office,07/10/2014,Training,Trade Marks Directorate,Capita Business Services  Ltd,X49216,126.00,Not applicable,
Department for Business Innovation and Skills,Intellectual Property Office,15/10/2014,Training,Innovation Directorate,Capita Business Services  Ltd,X49993,135.00,Not applicable,
Department for Business Innovation and Skills,Intellectual Property Office,03/10/2014,Training,Patents Directorate,Sequence of Events Ltd,REF-200306-KSV,140.00,Not applicable,
Department for Business Innovation and Skills,Intellectual Property Office,09/10/2014,Training,Patents Directorate,Business Language Services Ltd,14073,142.00,Not applicable,
Department for Business Innovation and Skills,Intellectual Property Office,15/10/2014,Training,Copyright and IP Enforcement Directorate,Capita Business Services  Ltd,X49986,148.00,Not applicable,
Department for Business Innovation and Skills,Intellectual Property Office,02/10/2014,Training,IMPROVE Project,Quadrilect Ltd,27228,150.00,Not applicable,
Department for Business Innovation and Skills,Intellectual Property Office,28/10/2014,Training,Copyright and IP Enforcement Directorate,Trading Standards Institute,40403,197.00,Not applicable,
Department for Business Innovation and Skills,Intellectual Property Office,28/10/2014,Training,Copyright and IP Enforcement Directorate,Trading Standards Institute,40402,197.00,Not applicable,
Department for Business Innovation and Skills,Intellectual Property Office,10/10/2014,Training,Patents Directorate,Personal expenses name witheld,52560,240.00,Not applicable,
Department for Business Innovation and Skills,Intellectual Property Office,01/10/2014,Training,Finance Directorate,Personal expenses name witheld,52545,261.00,Not applicable,
Department for Business Innovation and Skills,Intellectual Property Office,28/10/2014,Training,International Policy Directorate,Capita Business Services  Ltd,X49224,272.00,Not applicable,
Department for Business Innovation and Skills,Intellectual Property Office,15/10/2014,Training,Innovation Directorate,Capita Business Services  Ltd,X49990,314.00,Not applicable,
Department for Business Innovation and Skills,Intellectual Property Office,15/10/2014,Training,Innovation Directorate,Capita Business Services  Ltd,X49215,314.00,Not applicable,
Department for Business Innovation and Skills,Intellectual Property Office,15/10/2014,Training,Innovation Directorate,Capita Business Services  Ltd,X49987,314.00,Not applicable,
Department for Business Innovation and Skills,Intellectual Property Office,15/10/2014,Training,Innovation Directorate,Capita Business Services  Ltd,X49991,314.00,Not applicable,
Department for Business Innovation and Skills,Intellectual Property Office,15/10/2014,Training,Innovation Directorate,Capita Business Services  Ltd,X49221,314.00,Not applicable,
Department for Business Innovation and Skills,Intellectual Property Office,10/10/2014,Training,"People, Property and Services Directorate",Quadrilect Ltd,27048,385.00,Not applicable,
Department for Business Innovation and Skills,Intellectual Property Office,29/10/2014,Training,Copyright and IP Enforcement Directorate,Trading Standards Institute (SE Branch),CD201839,411.96,Not applicable,
Department for Business Innovation and Skills,Intellectual Property Office,06/10/2014,Training,Patents Directorate,European Patent Office,40238607,434.54,Not applicable,
Department for Business Innovation and Skills,Intellectual Property Office,03/10/2014,Training,Patents Directorate,Sequence of Events Ltd,REF-200301-DRA,460.00,Not applicable,
Department for Business Innovation and Skills,Intellectual Property Office,10/10/2014,Training,"People, Property and Services Directorate",Quadrilect Ltd,27047,480.00,Not applicable,
Department for Business Innovation and Skills,Intellectual Property Office,15/10/2014,Training,Copyright and IP Enforcement Directorate,Capita Business Services  Ltd,X49988,500.00,Not applicable,
Department for Business Innovation and Skills,Intellectual Property Office,10/10/2014,Training,"People, Property and Services Directorate",Quadrilect Ltd,27392,730.00,Not applicable,
Department for Business Innovation and Skills,Intellectual Property Office,28/10/2014,Training,Business Support Directorate,Verhoef Training Ltd,7937,750.00,Not applicable,
Department for Business Innovation and Skills,Intellectual Property Office,23/10/2014,Training,Innovation Directorate,Open University,390190,775.00,Not applicable,
Department for Business Innovation and Skills,Intellectual Property Office,23/10/2014,Training,"People, Property and Services Directorate",Quadrilect Ltd,27243,835.00,Not applicable,
Department for Business Innovation and Skills,Intellectual Property Office,28/10/2014,Training,Innovation Directorate,Capita Business Services  Ltd,X46805,1925.00,Not applicable,
Department for Business Innovation and Skills,Intellectual Property Office,07/10/2014,Training,Patents Directorate,Teambuilding Solutions Ltd,A092014676,3845.00,Not applicable,
Department for Business Innovation and Skills,Intellectual Property Office,13/10/2014,Training,Copyright and IP Enforcement Directorate,IIR Limited,45339320,5300.00,Not applicable,
Department for Business Innovation and Skills,Intellectual Property Office,15/10/2014,Training,Innovation Directorate,Welsh Assembly Government,1800053062,5500.00,Not applicable,
Department for Business Innovation and Skills,Intellectual Property Office,06/10/2014,Training,Patents Directorate,University of  South Wales,OP-I031372,11662.00,Not applicable,
Department for Business Innovation and Skills,Intellectual Property Office,28/10/2014,Training,"People, Property and Services Directorate",Capita Business Services  Ltd,X49992,1178.00,Not applicable,
Department for Business Innovation and Skills,Intellectual Property Office,28/10/2014,Training,"People, Property and Services Directorate",Capita Business Services  Ltd,X50680,1294.00,Not applicable,
Department for Business Innovation and Skills,Intellectual Property Office,28/10/2014,Training,"People, Property and Services Directorate",Capita Business Services  Ltd,X49989,1294.00,Not applicable,
Department for Business Innovation and Skills,Intellectual Property Office,28/10/2014,Training,"People, Property and Services Directorate",Capita Business Services  Ltd,X49218,1294.00,Not applicable,
Department for Business Innovation and Skills,Intellectual Property Office,28/10/2014,Training,"People, Property and Services Directorate",Capita Business Services  Ltd,X50681,1332.00,Not applicable,
Department for Business Innovation and Skills,Intellectual Property Office,28/10/2014,Training,"People, Property and Services Directorate",Capita Business Services  Ltd,X49994,1712.00,Not applicable,
Department for Business Innovation and Skills,Intellectual Property Office,28/10/2014,Training,"People, Property and Services Directorate",Capita Business Services  Ltd,X49223,2919.00,Not applicable,
Department for Business Innovation and Skills,Intellectual Property Office,07/10/2014,Subscription to Professional bodies,"People, Property and Services Directorate",Personal expenses name witheld,52553,136.00,Not applicable,
Department for Business Innovation and Skills,Intellectual Property Office,03/10/2014,Subscription to Professional bodies,"People, Property and Services Directorate",Personal expenses name witheld,52549,144.00,Not applicable,
Department for Business Innovation and Skills,Intellectual Property Office,29/10/2014,Subscription to Professional bodies,"People, Property and Services Directorate",Personal expenses name witheld,52586,170.00,Not applicable,
Department for Business Innovation and Skills,Intellectual Property Office,17/10/2014,Childcare costs,"People, Property and Services Directorate",P&MM Ltd Re Childcare Plus,502545,37.37,Not applicable,
Department for Business Innovation and Skills,Intellectual Property Office,03/10/2014,Childcare costs,"People, Property and Services Directorate",P&MM Ltd Re Childcare Plus,502531,70.44,Not applicable,
Department for Business Innovation and Skills,Intellectual Property Office,17/10/2014,Childcare costs,"People, Property and Services Directorate",P&MM Ltd Re Childcare Plus,502546,75.75,Not applicable,
Department for Business Innovation and Skills,Intellectual Property Office,17/10/2014,Childcare costs,"People, Property and Services Directorate",P&MM Ltd Re Childcare Plus,502548,506.52,Not applicable,
Department for Business Innovation and Skills,Intellectual Property Office,17/10/2014,Childcare costs,"People, Property and Services Directorate",P&MM Ltd Re Childcare Plus,502540,5364.62,Not applicable,
Department for Business Innovation and Skills,Intellectual Property Office,17/10/2014,Childcare costs,"People, Property and Services Directorate",P&MM Ltd Re Childcare Plus,1017817,7193.37,Not applicable,
Department for Business Innovation and Skills,Intellectual Property Office,31/10/2014,Relocation Removals & Excess Fare,"People, Property and Services Directorate",Personal expenses name witheld,52592,47.60,Not applicable,
Department for Business Innovation and Skills,Intellectual Property Office,08/10/2014,Relocation Removals & Excess Fare,"People, Property and Services Directorate",Personal expenses name witheld,52556,588.80,Not applicable,
Department for Business Innovation and Skills,Intellectual Property Office,31/10/2014,Relocation Removals & Excess Fare,"People, Property and Services Directorate",Personal expenses name witheld,52593,597.50,Not applicable,
Department for Business Innovation and Skills,Intellectual Property Office,07/10/2014,Staff Suggestion Scheme,"People, Property and Services Directorate",Personal expenses name witheld,52552,100.00,Not applicable,
Department for Business Innovation and Skills,Intellectual Property Office,10/10/2014,Staff Suggestion Scheme,"People, Property and Services Directorate",Personal expenses name witheld,52558,150.00,Not applicable,
Department for Business Innovation and Skills,Intellectual Property Office,09/10/2014,Recruitment Advertising,Patents Directorate,University of Bristol,SUPP1038508,324.00,Not applicable,
Department for Business Innovation and Skills,Intellectual Property Office,09/10/2014,Recruitment Advertising,Patents Directorate,University of York,76548,552.00,Not applicable,
Department for Business Innovation and Skills,Intellectual Property Office,28/10/2014,Recruitment Advertising,Patents Directorate,Monster Worldwide Ltd,100207026,588.00,Not applicable,
Department for Business Innovation and Skills,Intellectual Property Office,23/10/2014,Recruitment Advertising,Patents Directorate,UCL,1091220,714.00,Not applicable,
Department for Business Innovation and Skills,Intellectual Property Office,27/10/2014,Recruitment Advertising,Patents Directorate,University of Oxford,121001658,720.00,Not applicable,
Department for Business Innovation and Skills,Intellectual Property Office,28/10/2014,Recruitment Advertising,Patents Directorate,Wikijob Ltd,INV-1310,1545.00,Not applicable,
Department for Business Innovation and Skills,Intellectual Property Office,30/10/2014,Recruitment Advertising,Patents Directorate,GTI Media Ltd,141998,2994.00,Not applicable,
Department for Business Innovation and Skills,Intellectual Property Office,08/10/2014,Recruitment Advertising,"People, Property and Services Directorate",Acorn Recruitment Ltd,APS02599,5251.65,Not applicable,
Department for Business Innovation and Skills,Intellectual Property Office,14/10/2014,Recruitment Advertising,Patents Directorate,Graduate Prospects,PI051360,6096.00,Not applicable,
Department for Business Innovation and Skills,Intellectual Property Office,31/10/2014,Travel and subsistence UK,Patents Directorate,HRG UK,240888285,-191.35,Not applicable,
Department for Business Innovation and Skills,Intellectual Property Office,31/10/2014,Travel and subsistence UK,Patents Directorate,HRG UK,240888199,-190.87,Not applicable,
Department for Business Innovation and Skills,Intellectual Property Office,31/10/2014,Travel and subsistence UK,Trade Marks Directorate,HRG UK,240823270,-148.13,Not applicable,
Department for Business Innovation and Skills,Intellectual Property Office,31/10/2014,Travel and subsistence UK,Copyright and IP Enforcement Directorate,HRG UK,240888232,-89.01,Not applicable,
Department for Business Innovation and Skills,Intellectual Property Office,31/10/2014,Travel and subsistence UK,Copyright and IP Enforcement Directorate,HRG UK,240691457,-88.65,Not applicable,
Department for Business Innovation and Skills,Intellectual Property Office,31/10/2014,Travel and subsistence UK,Copyright and IP Enforcement Directorate,HRG UK,240854378,-74.83,Not applicable,
Department for Business Innovation and Skills,Intellectual Property Office,31/10/2014,Travel and subsistence UK,"People, Property and Services Directorate",HRG UK,240619338,-68.60,Not applicable,
Department for Business Innovation and Skills,Intellectual Property Office,31/10/2014,Travel and subsistence UK,Patents Directorate,HRG UK,240854364,-68.57,Not applicable,
Department for Business Innovation and Skills,Intellectual Property Office,31/10/2014,Travel and subsistence UK,"People, Property and Services Directorate",HRG UK,240619339,-64.08,Not applicable,
Department for Business Innovation and Skills,Intellectual Property Office,31/10/2014,Travel and subsistence UK,Innovation Directorate,HRG UK,240572966,-63.22,Not applicable,
Department for Business Innovation and Skills,Intellectual Property Office,31/10/2014,Travel and subsistence UK,Copyright and IP Enforcement Directorate,HRG UK,240658018,-58.70,Not applicable,
Department for Business Innovation and Skills,Intellectual Property Office,31/10/2014,Travel and subsistence UK,Patents Directorate,HRG UK,240658045,-56.37,Not applicable,
Department for Business Innovation and Skills,Intellectual Property Office,31/10/2014,Travel and subsistence UK,Copyright and IP Enforcement Directorate,HRG UK,240674157,-53.14,Not applicable,
Department for Business Innovation and Skills,Intellectual Property Office,31/10/2014,Travel and subsistence UK,Copyright and IP Enforcement Directorate,HRG UK,240562635,-38.28,Not applicable,
Department for Business Innovation and Skills,Intellectual Property Office,31/10/2014,Travel and subsistence UK,Innovation Directorate,Leasedrive Velo Rental Management Ltd,CRD00070851,-15.84,Not applicable,
Department for Business Innovation and Skills,Intellectual Property Office,31/10/2014,Travel and subsistence UK,Trade Marks Directorate,HRG UK,240684749,2.57,Not applicable,
Department for Business Innovation and Skills,Intellectual Property Office,31/10/2014,Travel and subsistence UK,Innovation Directorate,HRG UK,240554032,2.57,Not applicable,
Department for Business Innovation and Skills,Intellectual Property Office,31/10/2014,Travel and subsistence UK,Innovation Directorate,HRG UK,240671091,2.57,Not applicable,
Department for Business Innovation and Skills,Intellectual Property Office,31/10/2014,Travel and subsistence UK,"People, Property and Services Directorate",HRG UK,240628736,2.57,Not applicable,
Department for Business Innovation and Skills,Intellectual Property Office,31/10/2014,Travel and subsistence UK,Patents Directorate,HRG UK,240685307,2.57,Not applicable,
Department for Business Innovation and Skills,Intellectual Property Office,31/10/2014,Travel and subsistence UK,Patents Directorate,HRG UK,240752115,2.57,Not applicable,
Department for Business Innovation and Skills,Intellectual Property Office,31/10/2014,Travel and subsistence UK,International Policy Directorate,HRG UK,240595482,2.57,Not applicable,
Department for Business Innovation and Skills,Intellectual Property Office,31/10/2014,Travel and subsistence UK,Innovation Directorate,HRG UK,240767440,2.57,Not applicable,
Department for Business Innovation and Skills,Intellectual Property Office,31/10/2014,Travel and subsistence UK,Copyright and IP Enforcement Directorate,HRG UK,240553868,2.57,Not applicable,
Department for Business Innovation and Skills,Intellectual Property Office,31/10/2014,Travel and subsistence UK,Innovation Directorate,HRG UK,240728701,2.57,Not applicable,
Department for Business Innovation and Skills,Intellectual Property Office,31/10/2014,Travel and subsistence UK,International Policy Directorate,HRG UK,240582985,2.57,Not applicable,
Department for Business Innovation and Skills,Intellectual Property Office,31/10/2014,Travel and subsistence UK,International Policy Directorate,HRG UK,240767756,2.57,Not applicable,
Department for Business Innovation and Skills,Intellectual Property Office,31/10/2014,Travel and subsistence UK,International Policy Directorate,HRG UK,240848601,2.57,Not applicable,
Department for Business Innovation and Skills,Intellectual Property Office,31/10/2014,Travel and subsistence UK,Business Support Directorate,HRG UK,240700883,2.57,Not applicable,
Department for Business Innovation and Skills,Intellectual Property Office,31/10/2014,Travel and subsistence UK,Patents Directorate,HRG UK,240569811,2.57,Not applicable,
Department for Business Innovation and Skills,Intellectual Property Office,31/10/2014,Travel and subsistence UK,Patents Directorate,HRG UK,240595085,2.57,Not applicable,
Department for Business Innovation and Skills,Intellectual Property Office,31/10/2014,Travel and subsistence UK,Innovation Directorate,HRG UK,240879168,2.57,Not applicable,
Department for Business Innovation and Skills,Intellectual Property Office,31/10/2014,Travel and subsistence UK,"People, Property and Services Directorate",HRG UK,240701983,2.57,Not applicable,
Department for Business Innovation and Skills,Intellectual Property Office,31/10/2014,Travel and subsistence UK,Innovation Directorate,HRG UK,240670914,2.57,Not applicable,
Department for Business Innovation and Skills,Intellectual Property Office,31/10/2014,Travel and subsistence UK,Innovation Directorate,HRG UK,240554011,2.57,Not applicable,
Department for Business Innovation and Skills,Intellectual Property Office,31/10/2014,Travel and subsistence UK,International Policy Directorate,HRG UK,240883091,2.57,Not applicable,
Department for Business Innovation and Skills,Intellectual Property Office,31/10/2014,Travel and subsistence UK,"People, Property and Services Directorate",HRG UK,240881390,2.57,Not applicable,
Department for Business Innovation and Skills,Intellectual Property Office,31/10/2014,Travel and subsistence UK,Business Support Directorate,HRG UK,240569448,2.57,Not applicable,
Department for Business Innovation and Skills,Intellectual Property Office,31/10/2014,Travel and subsistence UK,Trade Marks Directorate,HRG UK,240538961,2.57,Not applicable,
Department for Business Innovation and Skills,Intellectual Property Office,31/10/2014,Travel and subsistence UK,Finance Directorate,HRG UK,240552555,2.57,Not applicable,
Department for Business Innovation and Skills,Intellectual Property Office,31/10/2014,Travel and subsistence UK,Trade Marks Directorate,HRG UK,240701110,2.57,Not applicable,
Department for Business Innovation and Skills,Intellectual Property Office,31/10/2014,Travel and subsistence UK,International Policy Directorate,HRG UK,240728950,2.57,Not applicable,
Department for Business Innovation and Skills,Intellectual Property Office,31/10/2014,Travel and subsistence UK,Trade Marks Directorate,HRG UK,240751959,2.57,Not applicable,
Department for Business Innovation and Skills,Intellectual Property Office,31/10/2014,Travel and subsistence UK,Innovation Directorate,HRG UK,240670242,2.57,Not applicable,
Department for Business Innovation and Skills,Intellectual Property Office,31/10/2014,Travel and subsistence UK,Copyright and IP Enforcement Directorate,HRG UK,240751946,2.57,Not applicable,
Department for Business Innovation and Skills,Intellectual Property Office,31/10/2014,Travel and subsistence UK,Patents Directorate,HRG UK,240662103,2.57,Not applicable,
Department for Business Innovation and Skills,Intellectual Property Office,31/10/2014,Travel and subsistence UK,Patents Directorate,HRG UK,240662168,2.57,Not applicable,
Department for Business Innovation and Skills,Intellectual Property Office,31/10/2014,Travel and subsistence UK,International Policy Directorate,HRG UK,240813908,2.57,Not applicable,
Department for Business Innovation and Skills,Intellectual Property Office,31/10/2014,Travel and subsistence UK,International Policy Directorate,HRG UK,240751969,2.57,Not applicable,
Department for Business Innovation and Skills,Intellectual Property Office,31/10/2014,Travel and subsistence UK,Innovation Directorate,HRG UK,240728103,2.57,Not applicable,
Department for Business Innovation and Skills,Intellectual Property Office,31/10/2014,Travel and subsistence UK,Innovation Directorate,HRG UK,240701610,2.57,Not applicable,
Department for Business Innovation and Skills,Intellectual Property Office,31/10/2014,Travel and subsistence UK,International Policy Directorate,HRG UK,240729318,2.57,Not applicable,
Department for Business Innovation and Skills,Intellectual Property Office,31/10/2014,Travel and subsistence UK,Trade Marks Directorate,HRG UK,240701403,2.57,Not applicable,
Department for Business Innovation and Skills,Intellectual Property Office,31/10/2014,Travel and subsistence UK,Copyright and IP Enforcement Directorate,HRG UK,240553784,2.57,Not applicable,
Department for Business Innovation and Skills,Intellectual Property Office,31/10/2014,Travel and subsistence UK,Patents Directorate,HRG UK,240766868,2.57,Not applicable,
Department for Business Innovation and Skills,Intellectual Property Office,31/10/2014,Travel and subsistence UK,International Policy Directorate,HRG UK,240537849,2.57,Not applicable,
Department for Business Innovation and Skills,Intellectual Property Office,31/10/2014,Travel and subsistence UK,Innovation Directorate,HRG UK,240879293,2.57,Not applicable,
Department for Business Innovation and Skills,Intellectual Property Office,31/10/2014,Travel and subsistence UK,"People, Property and Services Directorate",HRG UK,240702019,2.57,Not applicable,
Department for Business Innovation and Skills,Intellectual Property Office,31/10/2014,Travel and subsistence UK,Innovation Directorate,HRG UK,240670995,2.57,Not applicable,
Department for Business Innovation and Skills,Intellectual Property Office,31/10/2014,Travel and subsistence UK,Innovation Directorate,HRG UK,240671108,2.57,Not applicable,
Department for Business Innovation and Skills,Intellectual Property Office,31/10/2014,Travel and subsistence UK,Innovation Directorate,HRG UK,240728476,2.57,Not applicable,
Department for Business Innovation and Skills,Intellectual Property Office,31/10/2014,Travel and subsistence UK,Innovation Directorate,HRG UK,240671537,2.57,Not applicable,
Department for Business Innovation and Skills,Intellectual Property Office,31/10/2014,Travel and subsistence UK,Innovation Directorate,HRG UK,240552699,2.57,Not applicable,
Department for Business Innovation and Skills,Intellectual Property Office,31/10/2014,Travel and subsistence UK,International Policy Directorate,HRG UK,240751012,2.57,Not applicable,
Department for Business Innovation and Skills,Intellectual Property Office,31/10/2014,Travel and subsistence UK,Copyright and IP Enforcement Directorate,HRG UK,240671569,2.57,Not applicable,
Department for Business Innovation and Skills,Intellectual Property Office,31/10/2014,Travel and subsistence UK,"People, Property and Services Directorate",HRG UK,240629938,2.57,Not applicable,
Department for Business Innovation and Skills,Intellectual Property Office,31/10/2014,Travel and subsistence UK,International Policy Directorate,HRG UK,240766979,2.57,Not applicable,
Department for Business Innovation and Skills,Intellectual Property Office,31/10/2014,Travel and subsistence UK,International Policy Directorate,HRG UK,240766878,2.57,Not applicable,
Department for Business Innovation and Skills,Intellectual Property Office,31/10/2014,Travel and subsistence UK,Innovation Directorate,HRG UK,240799217,2.57,Not applicable,
Department for Business Innovation and Skills,Intellectual Property Office,31/10/2014,Travel and subsistence UK,Innovation Directorate,HRG UK,240670942,2.57,Not applicable,
Department for Business Innovation and Skills,Intellectual Property Office,31/10/2014,Travel and subsistence UK,Patents Directorate,HRG UK,240582875,2.57,Not applicable,
Department for Business Innovation and Skills,Intellectual Property Office,31/10/2014,Travel and subsistence UK,Finance Directorate,HRG UK,240848816,2.57,Not applicable,
Department for Business Innovation and Skills,Intellectual Property Office,31/10/2014,Travel and subsistence UK,Trade Marks Directorate,HRG UK,240799254,2.57,Not applicable,
Department for Business Innovation and Skills,Intellectual Property Office,31/10/2014,Travel and subsistence UK,Innovation Directorate,HRG UK,240538936,2.57,Not applicable,
Department for Business Innovation and Skills,Intellectual Property Office,31/10/2014,Travel and subsistence UK,Copyright and IP Enforcement Directorate,HRG UK,240537936,2.57,Not applicable,
Department for Business Innovation and Skills,Intellectual Property Office,31/10/2014,Travel and subsistence UK,Patents Directorate,HRG UK,240569796,2.57,Not applicable,
Department for Business Innovation and Skills,Intellectual Property Office,31/10/2014,Travel and subsistence UK,Innovation Directorate,HRG UK,240880506,2.57,Not applicable,
Department for Business Innovation and Skills,Intellectual Property Office,31/10/2014,Travel and subsistence UK,Innovation Directorate,HRG UK,240671072,2.57,Not applicable,
Department for Business Innovation and Skills,Intellectual Property Office,31/10/2014,Travel and subsistence UK,Innovation Directorate,HRG UK,240728142,2.57,Not applicable,
Department for Business Innovation and Skills,Intellectual Property Office,31/10/2014,Travel and subsistence UK,Innovation Directorate,HRG UK,240660923,2.57,Not applicable,
Department for Business Innovation and Skills,Intellectual Property Office,31/10/2014,Travel and subsistence UK,Innovation Directorate,HRG UK,240537854,2.57,Not applicable,
Department for Business Innovation and Skills,Intellectual Property Office,31/10/2014,Travel and subsistence UK,Patents Directorate,HRG UK,240767192,2.57,Not applicable,
Department for Business Innovation and Skills,Intellectual Property Office,31/10/2014,Travel and subsistence UK,International Policy Directorate,HRG UK,240552701,2.57,Not applicable,
Department for Business Innovation and Skills,Intellectual Property Office,31/10/2014,Travel and subsistence UK,Innovation Directorate,HRG UK,240713635,2.57,Not applicable,
Department for Business Innovation and Skills,Intellectual Property Office,31/10/2014,Travel and subsistence UK,Innovation Directorate,HRG UK,240767037,2.57,Not applicable,
Department for Business Innovation and Skills,Intellectual Property Office,31/10/2014,Travel and subsistence UK,Innovation Directorate,HRG UK,240728488,2.57,Not applicable,
Department for Business Innovation and Skills,Intellectual Property Office,31/10/2014,Travel and subsistence UK,International Policy Directorate,HRG UK,240767725,2.57,Not applicable,
Department for Business Innovation and Skills,Intellectual Property Office,31/10/2014,Travel and subsistence UK,International Policy Directorate,HRG UK,240766942,2.57,Not applicable,
Department for Business Innovation and Skills,Intellectual Property Office,31/10/2014,Travel and subsistence UK,International Policy Directorate,HRG UK,240537837,2.57,Not applicable,
Department for Business Innovation and Skills,Intellectual Property Office,31/10/2014,Travel and subsistence UK,International Policy Directorate,HRG UK,240537880,2.57,Not applicable,
Department for Business Innovation and Skills,Intellectual Property Office,31/10/2014,Travel and subsistence UK,International Policy Directorate,HRG UK,240552546,2.57,Not applicable,
Department for Business Innovation and Skills,Intellectual Property Office,31/10/2014,Travel and subsistence UK,Innovation Directorate,HRG UK,240671127,2.57,Not applicable,
Department for Business Innovation and Skills,Intellectual Property Office,31/10/2014,Travel and subsistence UK,Innovation Directorate,HRG UK,240670231,2.57,Not applicable,
Department for Business Innovation and Skills,Intellectual Property Office,31/10/2014,Travel and subsistence UK,Innovation Directorate,HRG UK,240552593,2.57,Not applicable,
Department for Business Innovation and Skills,Intellectual Property Office,31/10/2014,Travel and subsistence UK,Innovation Directorate,HRG UK,240670296,2.57,Not applicable,
Department for Business Innovation and Skills,Intellectual Property Office,31/10/2014,Travel and subsistence UK,Innovation Directorate,HRG UK,240701526,2.57,Not applicable,
Department for Business Innovation and Skills,Intellectual Property Office,31/10/2014,Travel and subsistence UK,Innovation Directorate,HRG UK,240660138,2.57,Not applicable,
Department for Business Innovation and Skills,Intellectual Property Office,31/10/2014,Travel and subsistence UK,Innovation Directorate,HRG UK,240713471,2.57,Not applicable,
Department for Business Innovation and Skills,Intellectual Property Office,31/10/2014,Travel and subsistence UK,Innovation Directorate,HRG UK,240713550,2.57,Not applicable,
Department for Business Innovation and Skills,Intellectual Property Office,31/10/2014,Travel and subsistence UK,Copyright and IP Enforcement Directorate,HRG UK,240850180,2.57,Not applicable,
Department for Business Innovation and Skills,Intellectual Property Office,31/10/2014,Travel and subsistence UK,Trade Marks Directorate,HRG UK,240538621,2.57,Not applicable,
Department for Business Innovation and Skills,Intellectual Property Office,31/10/2014,Travel and subsistence UK,International Policy Directorate,HRG UK,240782305,2.57,Not applicable,
Department for Business Innovation and Skills,Intellectual Property Office,31/10/2014,Travel and subsistence UK,Innovation Directorate,HRG UK,240750863,2.57,Not applicable,
Department for Business Innovation and Skills,Intellectual Property Office,31/10/2014,Travel and subsistence UK,International Policy Directorate,HRG UK,240830416,2.57,Not applicable,
Department for Business Innovation and Skills,Intellectual Property Office,31/10/2014,Travel and subsistence UK,Patents Directorate,HRG UK,240595430,2.57,Not applicable,
Department for Business Innovation and Skills,Intellectual Property Office,31/10/2014,Travel and subsistence UK,Innovation Directorate,HRG UK,240537855,2.57,Not applicable,
Department for Business Innovation and Skills,Intellectual Property Office,31/10/2014,Travel and subsistence UK,Innovation Directorate,HRG UK,240782998,2.57,Not applicable,
Department for Business Innovation and Skills,Intellectual Property Office,31/10/2014,Travel and subsistence UK,International Policy Directorate,HRG UK,240594934,2.57,Not applicable,
Department for Business Innovation and Skills,Intellectual Property Office,31/10/2014,Travel and subsistence UK,Innovation Directorate,HRG UK,240671528,2.57,Not applicable,
Department for Business Innovation and Skills,Intellectual Property Office,31/10/2014,Travel and subsistence UK,Innovation Directorate,HRG UK,240612505,2.57,Not applicable,
Department for Business Innovation and Skills,Intellectual Property Office,31/10/2014,Travel and subsistence UK,Innovation Directorate,HRG UK,240798218,2.57,Not applicable,
Department for Business Innovation and Skills,Intellectual Property Office,31/10/2014,Travel and subsistence UK,Innovation Directorate,HRG UK,240849998,2.57,Not applicable,
Department for Business Innovation and Skills,Intellectual Property Office,31/10/2014,Travel and subsistence UK,Innovation Directorate,HRG UK,240849931,2.57,Not applicable,
Department for Business Innovation and Skills,Intellectual Property Office,31/10/2014,Travel and subsistence UK,International Policy Directorate,HRG UK,240883081,2.57,Not applicable,
Department for Business Innovation and Skills,Intellectual Property Office,31/10/2014,Travel and subsistence UK,"People, Property and Services Directorate",HRG UK,240879371,2.57,Not applicable,
Department for Business Innovation and Skills,Intellectual Property Office,31/10/2014,Travel and subsistence UK,Patents Directorate,HRG UK,240752095,2.57,Not applicable,
Department for Business Innovation and Skills,Intellectual Property Office,31/10/2014,Travel and subsistence UK,Trade Marks Directorate,HRG UK,240538598,2.57,Not applicable,
Department for Business Innovation and Skills,Intellectual Property Office,31/10/2014,Travel and subsistence UK,International Policy Directorate,HRG UK,240813449,2.57,Not applicable,
Department for Business Innovation and Skills,Intellectual Property Office,31/10/2014,Travel and subsistence UK,Trade Marks Directorate,HRG UK,240797910,2.57,Not applicable,
Department for Business Innovation and Skills,Intellectual Property Office,31/10/2014,Travel and subsistence UK,Innovation Directorate,HRG UK,240670399,2.57,Not applicable,
Department for Business Innovation and Skills,Intellectual Property Office,31/10/2014,Travel and subsistence UK,Patents Directorate,HRG UK,240595476,2.57,Not applicable,
Department for Business Innovation and Skills,Intellectual Property Office,31/10/2014,Travel and subsistence UK,Innovation Directorate,HRG UK,240537842,2.57,Not applicable,
Department for Business Innovation and Skills,Intellectual Property Office,31/10/2014,Travel and subsistence UK,Innovation Directorate,HRG UK,240537856,2.57,Not applicable,
Department for Business Innovation and Skills,Intellectual Property Office,31/10/2014,Travel and subsistence UK,International Policy Directorate,HRG UK,240583857,2.57,Not applicable,
Department for Business Innovation and Skills,Intellectual Property Office,14/10/2014,Travel and subsistence UK,Patents Directorate,Personal expenses name witheld,ER124735,3.60,Not applicable,
Department for Business Innovation and Skills,Intellectual Property Office,20/10/2014,Travel and subsistence UK,Copyright and IP Enforcement Directorate,Personal expenses name witheld,ER125116,4.25,Not applicable,
Department for Business Innovation and Skills,Intellectual Property Office,08/10/2014,Travel and subsistence UK,Innovation Directorate,Personal expenses name witheld,ER124194,4.25,Not applicable,
Department for Business Innovation and Skills,Intellectual Property Office,07/10/2014,Travel and subsistence UK,Innovation Directorate,Personal expenses name witheld,ER123941,4.40,Not applicable,
Department for Business Innovation and Skills,Intellectual Property Office,27/10/2014,Travel and subsistence UK,Patents Directorate,Personal expenses name witheld,ER125539,5.05,Not applicable,
Department for Business Innovation and Skills,Intellectual Property Office,03/10/2014,Travel and subsistence UK,Patents Directorate,Personal expenses name witheld,ER123957,5.05,Not applicable,
Department for Business Innovation and Skills,Intellectual Property Office,31/10/2014,Travel and subsistence UK,Business Support Directorate,HRG UK,240717759,5.14,Not applicable,
Department for Business Innovation and Skills,Intellectual Property Office,31/10/2014,Travel and subsistence UK,Patents Directorate,HRG UK,240813551,5.14,Not applicable,
Department for Business Innovation and Skills,Intellectual Property Office,31/10/2014,Travel and subsistence UK,Innovation Directorate,HRG UK,240830305,5.14,Not applicable,
Department for Business Innovation and Skills,Intellectual Property Office,31/10/2014,Travel and subsistence UK,Patents Directorate,HRG UK,240813861,5.14,Not applicable,
Department for Business Innovation and Skills,Intellectual Property Office,31/10/2014,Travel and subsistence UK,Patents Directorate,HRG UK,240685214,5.65,Not applicable,
Department for Business Innovation and Skills,Intellectual Property Office,31/10/2014,Travel and subsistence UK,Innovation Directorate,HRG UK,240661325,5.65,Not applicable,
Department for Business Innovation and Skills,Intellectual Property Office,31/10/2014,Travel and subsistence UK,Copyright and IP Enforcement Directorate,HRG UK,240782369,5.65,Not applicable,
Department for Business Innovation and Skills,Intellectual Property Office,31/10/2014,Travel and subsistence UK,International Policy Directorate,HRG UK,240782350,5.65,Not applicable,
Department for Business Innovation and Skills,Intellectual Property Office,31/10/2014,Travel and subsistence UK,Copyright and IP Enforcement Directorate,HRG UK,240798014,5.65,Not applicable,
Department for Business Innovation and Skills,Intellectual Property Office,31/10/2014,Travel and subsistence UK,Copyright and IP Enforcement Directorate,HRG UK,240798015,5.65,Not applicable,
Department for Business Innovation and Skills,Intellectual Property Office,31/10/2014,Travel and subsistence UK,Copyright and IP Enforcement Directorate,HRG UK,240538898,5.65,Not applicable,
Department for Business Innovation and Skills,Intellectual Property Office,31/10/2014,Travel and subsistence UK,Finance Directorate,HRG UK,240570296,5.65,Not applicable,
Department for Business Innovation and Skills,Intellectual Property Office,31/10/2014,Travel and subsistence UK,Innovation Directorate,HRG UK,240538383,5.65,Not applicable,
Department for Business Innovation and Skills,Intellectual Property Office,31/10/2014,Travel and subsistence UK,Trade Marks Directorate,HRG UK,240701626,5.65,Not applicable,
Department for Business Innovation and Skills,Intellectual Property Office,31/10/2014,Travel and subsistence UK,Trade Marks Directorate,HRG UK,240701924,5.65,Not applicable,
Department for Business Innovation and Skills,Intellectual Property Office,31/10/2014,Travel and subsistence UK,International Policy Directorate,HRG UK,240782347,5.65,Not applicable,
Department for Business Innovation and Skills,Intellectual Property Office,31/10/2014,Travel and subsistence UK,International Policy Directorate,HRG UK,240782349,5.65,Not applicable,
Department for Business Innovation and Skills,Intellectual Property Office,31/10/2014,Travel and subsistence UK,International Policy Directorate,HRG UK,240782348,5.65,Not applicable,
Department for Business Innovation and Skills,Intellectual Property Office,31/10/2014,Travel and subsistence UK,Copyright and IP Enforcement Directorate,HRG UK,240671624,5.65,Not applicable,
Department for Business Innovation and Skills,Intellectual Property Office,31/10/2014,Travel and subsistence UK,Trade Marks Directorate,HRG UK,240701629,5.65,Not applicable,
Department for Business Innovation and Skills,Intellectual Property Office,31/10/2014,Travel and subsistence UK,Business Support Directorate,HRG UK,240751999,5.65,Not applicable,
Department for Business Innovation and Skills,Intellectual Property Office,31/10/2014,Travel and subsistence UK,Innovation Directorate,HRG UK,240729074,5.65,Not applicable,
Department for Business Innovation and Skills,Intellectual Property Office,31/10/2014,Travel and subsistence UK,Copyright and IP Enforcement Directorate,HRG UK,240629887,5.65,Not applicable,
Department for Business Innovation and Skills,Intellectual Property Office,31/10/2014,Travel and subsistence UK,Copyright and IP Enforcement Directorate,HRG UK,240729081,5.65,Not applicable,
Department for Business Innovation and Skills,Intellectual Property Office,31/10/2014,Travel and subsistence UK,Copyright and IP Enforcement Directorate,HRG UK,240782370,5.65,Not applicable,
Department for Business Innovation and Skills,Intellectual Property Office,31/10/2014,Travel and subsistence UK,Innovation Directorate,HRG UK,240538384,5.65,Not applicable,
Department for Business Innovation and Skills,Intellectual Property Office,31/10/2014,Travel and subsistence UK,Finance Directorate,HRG UK,240570265,5.65,Not applicable,
Department for Business Innovation and Skills,Intellectual Property Office,31/10/2014,Travel and subsistence UK,Copyright and IP Enforcement Directorate,HRG UK,240661437,5.65,Not applicable,
Department for Business Innovation and Skills,Intellectual Property Office,31/10/2014,Travel and subsistence UK,International Policy Directorate,HRG UK,240879051,5.65,Not applicable,
Department for Business Innovation and Skills,Intellectual Property Office,21/10/2014,Travel and subsistence UK,Finance Directorate,Personal expenses name witheld,ER124677,6.05,Not applicable,
Department for Business Innovation and Skills,Intellectual Property Office,14/10/2014,Travel and subsistence UK,Innovation Directorate,Personal expenses name witheld,ER124744,6.40,Not applicable,
Department for Business Innovation and Skills,Intellectual Property Office,23/10/2014,Travel and subsistence UK,Patents Directorate,Personal expenses name witheld,ER125358,6.40,Not applicable,
Department for Business Innovation and Skills,Intellectual Property Office,17/10/2014,Travel and subsistence UK,Innovation Directorate,Personal expenses name witheld,ER125097,7.00,Not applicable,
Department for Business Innovation and Skills,Intellectual Property Office,06/10/2014,Travel and subsistence UK,Copyright and IP Enforcement Directorate,Personal expenses name witheld,ER124156,7.00,Not applicable,
Department for Business Innovation and Skills,Intellectual Property Office,17/10/2014,Travel and subsistence UK,Innovation Directorate,Personal expenses name witheld,ER125093,7.10,Not applicable,
Department for Business Innovation and Skills,Intellectual Property Office,20/10/2014,Travel and subsistence UK,Patents Directorate,Personal expenses name witheld,ER125177,7.70,Not applicable,
Department for Business Innovation and Skills,Intellectual Property Office,16/10/2014,Travel and subsistence UK,Patents Directorate,Veezu Ltd T/A Dragon Taxis (Newport),2378,7.80,Not applicable,
Department for Business Innovation and Skills,Intellectual Property Office,16/10/2014,Travel and subsistence UK,Trade Marks Directorate,Veezu Ltd T/A Dragon Taxis (Newport),2378,7.80,Not applicable,
Department for Business Innovation and Skills,Intellectual Property Office,20/10/2014,Travel and subsistence UK,Patents Directorate,Personal expenses name witheld,ER125157,7.90,Not applicable,
Department for Business Innovation and Skills,Intellectual Property Office,07/10/2014,Travel and subsistence UK,"People, Property and Services Directorate",Personal expenses name witheld,ER124094,8.10,Not applicable,
Department for Business Innovation and Skills,Intellectual Property Office,15/10/2014,Travel and subsistence UK,"People, Property and Services Directorate",Personal expenses name witheld,ER124813,8.10,Not applicable,
Department for Business Innovation and Skills,Intellectual Property Office,31/10/2014,Travel and subsistence UK,Innovation Directorate,HRG UK,240798209,8.22,Not applicable,
Department for Business Innovation and Skills,Intellectual Property Office,31/10/2014,Travel and subsistence UK,"People, Property and Services Directorate",HRG UK,240702437,8.22,Not applicable,
Department for Business Innovation and Skills,Intellectual Property Office,31/10/2014,Travel and subsistence UK,Innovation Directorate,HRG UK,240798208,8.22,Not applicable,
Department for Business Innovation and Skills,Intellectual Property Office,31/10/2014,Travel and subsistence UK,Trade Marks Directorate,HRG UK,240701631,8.22,Not applicable,
Department for Business Innovation and Skills,Intellectual Property Office,31/10/2014,Travel and subsistence UK,Innovation Directorate,HRG UK,240583240,8.22,Not applicable,
Department for Business Innovation and Skills,Intellectual Property Office,31/10/2014,Travel and subsistence UK,International Policy Directorate,HRG UK,240729040,8.22,Not applicable,
Department for Business Innovation and Skills,Intellectual Property Office,17/10/2014,Travel and subsistence UK,Innovation Directorate,Personal expenses name witheld,ER125098,8.45,Not applicable,
Department for Business Innovation and Skills,Intellectual Property Office,31/10/2014,Travel and subsistence UK,Copyright and IP Enforcement Directorate,HRG UK,240837301,8.86,Not applicable,
Department for Business Innovation and Skills,Intellectual Property Office,03/10/2014,Travel and subsistence UK,Innovation Directorate,Personal expenses name witheld,ER124074,9.00,Not applicable,
Department for Business Innovation and Skills,Intellectual Property Office,14/10/2014,Travel and subsistence UK,Copyright and IP Enforcement Directorate,Personal expenses name witheld,ER124714,9.30,Not applicable,
Department for Business Innovation and Skills,Intellectual Property Office,14/10/2014,Travel and subsistence UK,Copyright and IP Enforcement Directorate,Personal expenses name witheld,ER123966,9.30,Not applicable,
Department for Business Innovation and Skills,Intellectual Property Office,16/10/2014,Travel and subsistence UK,Innovation Directorate,Personal expenses name witheld,ER124795,9.30,Not applicable,
Department for Business Innovation and Skills,Intellectual Property Office,03/10/2014,Travel and subsistence UK,Patents Directorate,Personal expenses name witheld,ER123896,9.30,Not applicable,
Department for Business Innovation and Skills,Intellectual Property Office,27/10/2014,Travel and subsistence UK,Patents Directorate,James Gareth,ER125115,9.30,Not applicable,
Department for Business Innovation and Skills,Intellectual Property Office,13/10/2014,Travel and subsistence UK,Business Support Directorate,Personal expenses name witheld,ER124434,9.30,Not applicable,
Department for Business Innovation and Skills,Intellectual Property Office,14/10/2014,Travel and subsistence UK,Copyright and IP Enforcement Directorate,Personal expenses name witheld,ER124739,9.30,Not applicable,
Department for Business Innovation and Skills,Intellectual Property Office,28/10/2014,Travel and subsistence UK,Business Support Directorate,Personal expenses name witheld,ER125497,9.30,Not applicable,
Department for Business Innovation and Skills,Intellectual Property Office,16/10/2014,Travel and subsistence UK,Innovation Directorate,Personal expenses name witheld,ER124794,9.30,Not applicable,
Department for Business Innovation and Skills,Intellectual Property Office,14/10/2014,Travel and subsistence UK,Copyright and IP Enforcement Directorate,Personal expenses name witheld,ER124740,9.30,Not applicable,
Department for Business Innovation and Skills,Intellectual Property Office,16/10/2014,Travel and subsistence UK,Innovation Directorate,Personal expenses name witheld,ER124294,9.30,Not applicable,
Department for Business Innovation and Skills,Intellectual Property Office,06/10/2014,Travel and subsistence UK,Copyright and IP Enforcement Directorate,Personal expenses name witheld,ER123958,9.30,Not applicable,
Department for Business Innovation and Skills,Intellectual Property Office,14/10/2014,Travel and subsistence UK,Copyright and IP Enforcement Directorate,Personal expenses name witheld,ER124742,9.30,Not applicable,
Department for Business Innovation and Skills,Intellectual Property Office,09/10/2014,Travel and subsistence UK,International Policy Directorate,Personal expenses name witheld,ER123553,9.30,Not applicable,
Department for Business Innovation and Skills,Intellectual Property Office,20/10/2014,Travel and subsistence UK,Business Support Directorate,Personal expenses name witheld,ER125074,9.30,Not applicable,
Department for Business Innovation and Skills,Intellectual Property Office,13/10/2014,Travel and subsistence UK,Business Support Directorate,Personal expenses name witheld,ER124613,9.40,Not applicable,
Department for Business Innovation and Skills,Intellectual Property Office,31/10/2014,Travel and subsistence UK,Patents Directorate,HRG UK,240835120,9.72,Not applicable,
Department for Business Innovation and Skills,Intellectual Property Office,31/10/2014,Travel and subsistence UK,Copyright and IP Enforcement Directorate,HRG UK,240632380,9.72,Not applicable,
Department for Business Innovation and Skills,Intellectual Property Office,31/10/2014,Travel and subsistence UK,Patents Directorate,HRG UK,240747244,9.72,Not applicable,
Department for Business Innovation and Skills,Intellectual Property Office,31/10/2014,Travel and subsistence UK,"People, Property and Services Directorate",HRG UK,240749147,9.72,Not applicable,
Department for Business Innovation and Skills,Intellectual Property Office,31/10/2014,Travel and subsistence UK,Business Support Directorate,HRG UK,240749152,9.72,Not applicable,
Department for Business Innovation and Skills,Intellectual Property Office,31/10/2014,Travel and subsistence UK,Business Support Directorate,HRG UK,240611598,9.72,Not applicable,
Department for Business Innovation and Skills,Intellectual Property Office,31/10/2014,Travel and subsistence UK,Business Support Directorate,HRG UK,240760837,9.72,Not applicable,
Department for Business Innovation and Skills,Intellectual Property Office,31/10/2014,Travel and subsistence UK,"People, Property and Services Directorate",HRG UK,240858903,9.72,Not applicable,
Department for Business Innovation and Skills,Intellectual Property Office,31/10/2014,Travel and subsistence UK,Trade Marks Directorate,HRG UK,240653214,9.72,Not applicable,
Department for Business Innovation and Skills,Intellectual Property Office,31/10/2014,Travel and subsistence UK,Business Support Directorate,HRG UK,240690025,9.72,Not applicable,
Department for Business Innovation and Skills,Intellectual Property Office,31/10/2014,Travel and subsistence UK,Business Support Directorate,HRG UK,240773577,9.72,Not applicable,
Department for Business Innovation and Skills,Intellectual Property Office,31/10/2014,Travel and subsistence UK,Patents Directorate,HRG UK,240882500,9.72,Not applicable,
Department for Business Innovation and Skills,Intellectual Property Office,31/10/2014,Travel and subsistence UK,Finance Directorate,HRG UK,240762751,9.72,Not applicable,
Department for Business Innovation and Skills,Intellectual Property Office,31/10/2014,Travel and subsistence UK,"People, Property and Services Directorate",HRG UK,240861410,9.72,Not applicable,
Department for Business Innovation and Skills,Intellectual Property Office,31/10/2014,Travel and subsistence UK,Innovation Directorate,HRG UK,240763570,9.72,Not applicable,
Department for Business Innovation and Skills,Intellectual Property Office,31/10/2014,Travel and subsistence UK,Patents Directorate,HRG UK,240835152,9.72,Not applicable,
Department for Business Innovation and Skills,Intellectual Property Office,31/10/2014,Travel and subsistence UK,Trade Marks Directorate,HRG UK,240680923,9.72,Not applicable,
Department for Business Innovation and Skills,Intellectual Property Office,31/10/2014,Travel and subsistence UK,Innovation Directorate,HRG UK,240843422,9.72,Not applicable,
Department for Business Innovation and Skills,Intellectual Property Office,31/10/2014,Travel and subsistence UK,Trade Marks Directorate,HRG UK,240802198,9.72,Not applicable,
Department for Business Innovation and Skills,Intellectual Property Office,31/10/2014,Travel and subsistence UK,Innovation Directorate,HRG UK,240718046,9.72,Not applicable,
Department for Business Innovation and Skills,Intellectual Property Office,31/10/2014,Travel and subsistence UK,Trade Marks Directorate,HRG UK,240763660,9.72,Not applicable,
Department for Business Innovation and Skills,Intellectual Property Office,31/10/2014,Travel and subsistence UK,Trade Marks Directorate,HRG UK,240802205,9.72,Not applicable,
Department for Business Innovation and Skills,Intellectual Property Office,31/10/2014,Travel and subsistence UK,Innovation Directorate,HRG UK,240653242,9.72,Not applicable,
Department for Business Innovation and Skills,Intellectual Property Office,31/10/2014,Travel and subsistence UK,Business Support Directorate,HRG UK,240691117,9.72,Not applicable,
Department for Business Innovation and Skills,Intellectual Property Office,31/10/2014,Travel and subsistence UK,Finance Directorate,HRG UK,240882769,9.72,Not applicable,
Department for Business Innovation and Skills,Intellectual Property Office,16/10/2014,Travel and subsistence UK,Finance Directorate,Personal expenses name witheld,ER124939,10.00,Not applicable,
Department for Business Innovation and Skills,Intellectual Property Office,17/10/2014,Travel and subsistence UK,IMPROVE Project,Personal expenses name witheld,ER124235,10.80,Not applicable,
Department for Business Innovation and Skills,Intellectual Property Office,24/10/2014,Travel and subsistence UK,Innovation Directorate,Personal expenses name witheld,ER125459,10.80,Not applicable,
Department for Business Innovation and Skills,Intellectual Property Office,31/10/2014,Travel and subsistence UK,Central Support,HRG UK,240834797,11.06,Not applicable,
Department for Business Innovation and Skills,Intellectual Property Office,10/10/2014,Travel and subsistence UK,Innovation Directorate,Leasedrive Velo Rental Management Ltd,RHI01226206,11.24,Not applicable,
Department for Business Innovation and Skills,Intellectual Property Office,20/10/2014,Travel and subsistence UK,Patents Directorate,Personal expenses name witheld,ER125137,11.40,Not applicable,
Department for Business Innovation and Skills,Intellectual Property Office,10/10/2014,Travel and subsistence UK,Finance Directorate,Personal expenses name witheld,ER124549,11.45,Not applicable,
Department for Business Innovation and Skills,Intellectual Property Office,16/10/2014,Travel and subsistence UK,International Policy Directorate,Personal expenses name witheld,ER125015,11.50,Not applicable,
Department for Business Innovation and Skills,Intellectual Property Office,31/10/2014,Travel and subsistence UK,International Policy Directorate,HRG UK,240585328,11.57,Not applicable,
Department for Business Innovation and Skills,Intellectual Property Office,23/10/2014,Travel and subsistence UK,IMPROVE Project,Personal expenses name witheld,ER125377,11.95,Not applicable,
Department for Business Innovation and Skills,Intellectual Property Office,23/10/2014,Travel and subsistence UK,Finance Directorate,Personal expenses name witheld,ER125339,12.00,Not applicable,
Department for Business Innovation and Skills,Intellectual Property Office,16/10/2014,Travel and subsistence UK,IMPROVE Project,Personal expenses name witheld,ER125036,12.25,Not applicable,
Department for Business Innovation and Skills,Intellectual Property Office,31/10/2014,Travel and subsistence UK,Business Support Directorate,HRG UK,240779066,12.55,Not applicable,
Department for Business Innovation and Skills,Intellectual Property Office,31/10/2014,Travel and subsistence UK,Business Support Directorate,HRG UK,240611636,12.55,Not applicable,
Department for Business Innovation and Skills,Intellectual Property Office,28/10/2014,Travel and subsistence UK,Business Support Directorate,Personal expenses name witheld,ER125560,12.60,Not applicable,
Department for Business Innovation and Skills,Intellectual Property Office,21/10/2014,Travel and subsistence UK,Business Support Directorate,Personal expenses name witheld,ER125195,12.60,Not applicable,
Department for Business Innovation and Skills,Intellectual Property Office,17/10/2014,Travel and subsistence UK,Business Support Directorate,Personal expenses name witheld,ER125075,12.75,Not applicable,
Department for Business Innovation and Skills,Intellectual Property Office,06/10/2014,Travel and subsistence UK,Copyright and IP Enforcement Directorate,Personal expenses name witheld,ER124096,12.90,Not applicable,
Department for Business Innovation and Skills,Intellectual Property Office,23/10/2014,Travel and subsistence UK,International Policy Directorate,Personal expenses name witheld,ER125119,12.95,Not applicable,
Department for Business Innovation and Skills,Intellectual Property Office,14/10/2014,Travel and subsistence UK,Business Support Directorate,Personal expenses name witheld,ER124745,13.50,Not applicable,
Department for Business Innovation and Skills,Intellectual Property Office,17/10/2014,Travel and subsistence UK,Copyright and IP Enforcement Directorate,Personal expenses name witheld,ER125117,13.55,Not applicable,
Department for Business Innovation and Skills,Intellectual Property Office,28/10/2014,Travel and subsistence UK,International Policy Directorate,Personal expenses name witheld,ER125418,14.00,Not applicable,
Department for Business Innovation and Skills,Intellectual Property Office,20/10/2014,Travel and subsistence UK,Finance Directorate,Personal expenses name witheld,ER124893,14.15,Not applicable,
Department for Business Innovation and Skills,Intellectual Property Office,21/10/2014,Travel and subsistence UK,Copyright and IP Enforcement Directorate,Personal expenses name witheld,ER125254,14.20,Not applicable,
Department for Business Innovation and Skills,Intellectual Property Office,17/10/2014,Travel and subsistence UK,Patents Directorate,Personal expenses name witheld,ER125114,14.25,Not applicable,
Department for Business Innovation and Skills,Intellectual Property Office,31/10/2014,Travel and subsistence UK,International Policy Directorate,HRG UK,240585329,14.26,Not applicable,
Department for Business Innovation and Skills,Intellectual Property Office,16/10/2014,Travel and subsistence UK,Patents Directorate,Personal expenses name witheld,ER124943,14.35,Not applicable,
Department for Business Innovation and Skills,Intellectual Property Office,31/10/2014,Travel and subsistence UK,Patents Directorate,HRG UK,240872811,14.90,Not applicable,
Department for Business Innovation and Skills,Intellectual Property Office,31/10/2014,Travel and subsistence UK,Patents Directorate,HRG UK,240749853,14.95,Not applicable,
Department for Business Innovation and Skills,Intellectual Property Office,30/10/2014,Travel and subsistence UK,Trade Marks Directorate,Personal expenses name witheld,ER125697,15.10,Not applicable,
Department for Business Innovation and Skills,Intellectual Property Office,14/10/2014,Travel and subsistence UK,Patents Directorate,Personal expenses name witheld,ER124539,15.40,Not applicable,
Department for Business Innovation and Skills,Intellectual Property Office,16/10/2014,Travel and subsistence UK,"People, Property and Services Directorate",Veezu Ltd T/A Dragon Taxis (Newport),2378,15.60,Not applicable,
Department for Business Innovation and Skills,Intellectual Property Office,16/10/2014,Travel and subsistence UK,Trade Marks Directorate,Veezu Ltd T/A Dragon Taxis (Newport),2378,15.60,Not applicable,
Department for Business Innovation and Skills,Intellectual Property Office,31/10/2014,Travel and subsistence UK,Copyright and IP Enforcement Directorate,HRG UK,240623930,15.65,Not applicable,
Department for Business Innovation and Skills,Intellectual Property Office,31/10/2014,Travel and subsistence UK,Copyright and IP Enforcement Directorate,HRG UK,240623927,15.65,Not applicable,
Department for Business Innovation and Skills,Intellectual Property Office,31/10/2014,Travel and subsistence UK,Patents Directorate,HRG UK,240829337,15.75,Not applicable,
Department for Business Innovation and Skills,Intellectual Property Office,16/10/2014,Travel and subsistence UK,Trade Marks Directorate,Personal expenses name witheld,ER124952,15.80,Not applicable,
Department for Business Innovation and Skills,Intellectual Property Office,31/10/2014,Travel and subsistence UK,Central Support,HRG UK,240834798,15.96,Not applicable,
Department for Business Innovation and Skills,Intellectual Property Office,08/10/2014,Travel and subsistence UK,"People, Property and Services Directorate",Personal expenses name witheld,ER124198,16.00,Not applicable,
Department for Business Innovation and Skills,Intellectual Property Office,31/10/2014,Travel and subsistence UK,Copyright and IP Enforcement Directorate,HRG UK,240818159,16.34,Not applicable,
Department for Business Innovation and Skills,Intellectual Property Office,21/10/2014,Travel and subsistence UK,Copyright and IP Enforcement Directorate,Personal expenses name witheld,ER124548,16.50,Not applicable,
Department for Business Innovation and Skills,Intellectual Property Office,31/10/2014,Travel and subsistence UK,Copyright and IP Enforcement Directorate,HRG UK,240547995,16.64,Not applicable,
Department for Business Innovation and Skills,Intellectual Property Office,13/10/2014,Travel and subsistence UK,Finance Directorate,Personal expenses name witheld,ER124631,16.80,Not applicable,
Department for Business Innovation and Skills,Intellectual Property Office,29/10/2014,Travel and subsistence UK,"People, Property and Services Directorate",Personal expenses name witheld,ER125601,16.90,Not applicable,
Department for Business Innovation and Skills,Intellectual Property Office,14/10/2014,Travel and subsistence UK,Copyright and IP Enforcement Directorate,Personal expenses name witheld,ER124737,17.00,Not applicable,
Department for Business Innovation and Skills,Intellectual Property Office,08/10/2014,Travel and subsistence UK,Trade Marks Directorate,Personal expenses name witheld,ER124353,17.00,Not applicable,
Department for Business Innovation and Skills,Intellectual Property Office,13/10/2014,Travel and subsistence UK,International Policy Directorate,Personal expenses name witheld,ER124515,17.10,Not applicable,
Department for Business Innovation and Skills,Intellectual Property Office,31/10/2014,Travel and subsistence UK,Patents Directorate,HRG UK,240818170,17.15,Not applicable,
Department for Business Innovation and Skills,Intellectual Property Office,20/10/2014,Travel and subsistence UK,International Policy Directorate,Personal expenses name witheld,ER125141,17.20,Not applicable,
Department for Business Innovation and Skills,Intellectual Property Office,23/10/2014,Travel and subsistence UK,IMPROVE Project,Personal expenses name witheld,ER125378,18.00,Not applicable,
Department for Business Innovation and Skills,Intellectual Property Office,21/10/2014,Travel and subsistence UK,Business Support Directorate,Personal expenses name witheld,ER124796,18.00,Not applicable,
Department for Business Innovation and Skills,Intellectual Property Office,01/10/2014,Travel and subsistence UK,Business Support Directorate,Personal expenses name witheld,ER123934,18.50,Not applicable,
Department for Business Innovation and Skills,Intellectual Property Office,03/10/2014,Travel and subsistence UK,International Policy Directorate,Personal expenses name witheld,ER123351,18.60,Not applicable,
Department for Business Innovation and Skills,Intellectual Property Office,21/10/2014,Travel and subsistence UK,International Policy Directorate,Personal expenses name witheld,ER125175,18.60,Not applicable,
Department for Business Innovation and Skills,Intellectual Property Office,24/10/2014,Travel and subsistence UK,Patents Directorate,Personal expenses name witheld,ER125500,18.80,Not applicable,
Department for Business Innovation and Skills,Intellectual Property Office,07/10/2014,Travel and subsistence UK,Copyright and IP Enforcement Directorate,Personal expenses name witheld,ER124273,19.20,Not applicable,
Department for Business Innovation and Skills,Intellectual Property Office,10/10/2014,Travel and subsistence UK,IMPROVE Project,Personal expenses name witheld,ER124558,19.80,Not applicable,
Department for Business Innovation and Skills,Intellectual Property Office,31/10/2014,Travel and subsistence UK,International Policy Directorate,HRG UK,HRG,20.26,Not applicable,
Department for Business Innovation and Skills,Intellectual Property Office,31/10/2014,Travel and subsistence UK,International Policy Directorate,HRG UK,240585330,20.73,Not applicable,
Department for Business Innovation and Skills,Intellectual Property Office,31/10/2014,Travel and subsistence UK,Innovation Directorate,HRG UK,240765553,20.73,Not applicable,
Department for Business Innovation and Skills,Intellectual Property Office,31/10/2014,Travel and subsistence UK,Trade Marks Directorate,HRG UK,240855713,20.92,Not applicable,
Department for Business Innovation and Skills,Intellectual Property Office,31/10/2014,Travel and subsistence UK,International Policy Directorate,HRG UK,240585331,21.04,Not applicable,
Department for Business Innovation and Skills,Intellectual Property Office,31/10/2014,Travel and subsistence UK,Copyright and IP Enforcement Directorate,HRG UK,240851895,21.04,Not applicable,
Department for Business Innovation and Skills,Intellectual Property Office,31/10/2014,Travel and subsistence UK,International Policy Directorate,HRG UK,240679338,21.04,Not applicable,
Department for Business Innovation and Skills,Intellectual Property Office,31/10/2014,Travel and subsistence UK,IMPROVE Project,Personal expenses name witheld,ER125759,21.06,Not applicable,
Department for Business Innovation and Skills,Intellectual Property Office,01/10/2014,Travel and subsistence UK,Patents Directorate,Personal expenses name witheld,ER123695,21.25,Not applicable,
Department for Business Innovation and Skills,Intellectual Property Office,17/10/2014,Travel and subsistence UK,Patents Directorate,Personal expenses name witheld,ER125133,21.25,Not applicable,
Department for Business Innovation and Skills,Intellectual Property Office,13/10/2014,Travel and subsistence UK,Patents Directorate,Personal expenses name witheld,ER124545,21.25,Not applicable,
Department for Business Innovation and Skills,Intellectual Property Office,31/10/2014,Travel and subsistence UK,Patents Directorate,HRG UK,240745166,21.33,Not applicable,
Department for Business Innovation and Skills,Intellectual Property Office,16/10/2014,Travel and subsistence UK,Patents Directorate,Personal expenses name witheld,ER124974,22.10,Not applicable,
Department for Business Innovation and Skills,Intellectual Property Office,28/10/2014,Travel and subsistence UK,Trade Marks Directorate,Personal expenses name witheld,ER125582,22.10,Not applicable,
Department for Business Innovation and Skills,Intellectual Property Office,06/10/2014,Travel and subsistence UK,Innovation Directorate,Personal expenses name witheld,ER124113,22.71,Not applicable,
Department for Business Innovation and Skills,Intellectual Property Office,31/10/2014,Travel and subsistence UK,Copyright and IP Enforcement Directorate,HRG UK,240667828,22.93,Not applicable,
Department for Business Innovation and Skills,Intellectual Property Office,23/10/2014,Travel and subsistence UK,Business Support Directorate,Personal expenses name witheld,ER124673,23.00,Not applicable,
Department for Business Innovation and Skills,Intellectual Property Office,28/10/2014,Travel and subsistence UK,"People, Property and Services Directorate",Personal expenses name witheld,ER125599,23.20,Not applicable,
Department for Business Innovation and Skills,Intellectual Property Office,20/10/2014,Travel and subsistence UK,Patents Directorate,Personal expenses name witheld,ER125138,23.41,Not applicable,
Department for Business Innovation and Skills,Intellectual Property Office,31/10/2014,Travel and subsistence UK,"People, Property and Services Directorate",HRG UK,240829335,23.73,Not applicable,
Department for Business Innovation and Skills,Intellectual Property Office,31/10/2014,Travel and subsistence UK,"People, Property and Services Directorate",HRG UK,240829333,23.73,Not applicable,
Department for Business Innovation and Skills,Intellectual Property Office,30/10/2014,Travel and subsistence UK,Innovation Directorate,Personal expenses name witheld,ER125155,23.90,Not applicable,
Department for Business Innovation and Skills,Intellectual Property Office,29/10/2014,Travel and subsistence UK,Business Support Directorate,Personal expenses name witheld,ER125340,24.00,Not applicable,
Department for Business Innovation and Skills,Intellectual Property Office,13/10/2014,Travel and subsistence UK,Patents Directorate,Personal expenses name witheld,ER124538,24.70,Not applicable,
Department for Business Innovation and Skills,Intellectual Property Office,14/10/2014,Travel and subsistence UK,International Policy Directorate,Personal expenses name witheld,ER123696,24.90,Not applicable,
Department for Business Innovation and Skills,Intellectual Property Office,31/10/2014,Travel and subsistence UK,Innovation Directorate,HRG UK,240693358,24.93,Not applicable,
Department for Business Innovation and Skills,Intellectual Property Office,31/10/2014,Travel and subsistence UK,Innovation Directorate,HRG UK,240693436,24.93,Not applicable,
Department for Business Innovation and Skills,Intellectual Property Office,31/10/2014,Travel and subsistence UK,Innovation Directorate,HRG UK,240693523,24.93,Not applicable,
Department for Business Innovation and Skills,Intellectual Property Office,31/10/2014,Travel and subsistence UK,Innovation Directorate,HRG UK,240737572,24.93,Not applicable,
Department for Business Innovation and Skills,Intellectual Property Office,31/10/2014,Travel and subsistence UK,Innovation Directorate,HRG UK,240689533,24.93,Not applicable,
Department for Business Innovation and Skills,Intellectual Property Office,31/10/2014,Travel and subsistence UK,International Policy Directorate,HRG UK,240585345,24.93,Not applicable,
Department for Business Innovation and Skills,Intellectual Property Office,31/10/2014,Travel and subsistence UK,Copyright and IP Enforcement Directorate,HRG UK,240714486,24.93,Not applicable,
Department for Business Innovation and Skills,Intellectual Property Office,31/10/2014,Travel and subsistence UK,Copyright and IP Enforcement Directorate,HRG UK,240607126,24.93,Not applicable,
Department for Business Innovation and Skills,Intellectual Property Office,28/10/2014,Travel and subsistence UK,Patents Directorate,Personal expenses name witheld,ER125135,25.25,Not applicable,
Department for Business Innovation and Skills,Intellectual Property Office,10/10/2014,Travel and subsistence UK,Patents Directorate,Personal expenses name witheld,ER124540,25.30,Not applicable,
Department for Business Innovation and Skills,Intellectual Property Office,10/10/2014,Travel and subsistence UK,Patents Directorate,Personal expenses name witheld,52557,25.45,Not applicable,
Department for Business Innovation and Skills,Intellectual Property Office,07/10/2014,Travel and subsistence UK,Copyright and IP Enforcement Directorate,Personal expenses name witheld,ER124200,26.00,Not applicable,
Department for Business Innovation and Skills,Intellectual Property Office,23/10/2014,Travel and subsistence UK,Patents Directorate,Personal expenses name witheld,ER125317,26.00,Not applicable,
Department for Business Innovation and Skills,Intellectual Property Office,31/10/2014,Travel and subsistence UK,Copyright and IP Enforcement Directorate,HRG UK,240667827,26.51,Not applicable,
Department for Business Innovation and Skills,Intellectual Property Office,17/10/2014,Travel and subsistence UK,International Policy Directorate,Personal expenses name witheld,ER125105,26.60,Not applicable,
Department for Business Innovation and Skills,Intellectual Property Office,31/10/2014,Travel and subsistence UK,International Policy Directorate,HRG UK,240546702,26.63,Not applicable,
Department for Business Innovation and Skills,Intellectual Property Office,31/10/2014,Travel and subsistence UK,Copyright and IP Enforcement Directorate,HRG UK,240585324,26.63,Not applicable,
Department for Business Innovation and Skills,Intellectual Property Office,13/10/2014,Travel and subsistence UK,Business Support Directorate,Personal expenses name witheld,ER124593,26.80,Not applicable,
Department for Business Innovation and Skills,Intellectual Property Office,14/10/2014,Travel and subsistence UK,International Policy Directorate,Personal expenses name witheld,ER124774,26.90,Not applicable,
Department for Business Innovation and Skills,Intellectual Property Office,09/10/2014,Travel and subsistence UK,IMPROVE Project,Personal expenses name witheld,ER124413,27.30,Not applicable,
Department for Business Innovation and Skills,Intellectual Property Office,01/10/2014,Travel and subsistence UK,"People, Property and Services Directorate",Personal expenses name witheld,ER123894,27.56,Not applicable,
Department for Business Innovation and Skills,Intellectual Property Office,01/10/2014,Travel and subsistence UK,Business Support Directorate,Personal expenses name witheld,ER121715,27.60,Not applicable,
Department for Business Innovation and Skills,Intellectual Property Office,31/10/2014,Travel and subsistence UK,Copyright and IP Enforcement Directorate,HRG UK,240618355,27.93,Not applicable,
Department for Business Innovation and Skills,Intellectual Property Office,15/10/2014,Travel and subsistence UK,International Policy Directorate,Personal expenses name witheld,ER124894,28.00,Not applicable,
Department for Business Innovation and Skills,Intellectual Property Office,23/10/2014,Travel and subsistence UK,Patents Directorate,Personal expenses name witheld,ER124546,28.15,Not applicable,
Department for Business Innovation and Skills,Intellectual Property Office,03/10/2014,Travel and subsistence UK,Copyright and IP Enforcement Directorate,Personal expenses name witheld,52547,28.70,Not applicable,
Department for Business Innovation and Skills,Intellectual Property Office,31/10/2014,Travel and subsistence UK,Copyright and IP Enforcement Directorate,HRG UK,240885680,28.82,Not applicable,
Department for Business Innovation and Skills,Intellectual Property Office,31/10/2014,Travel and subsistence UK,Finance Directorate,HRG UK,240561053,29.81,Not applicable,
Department for Business Innovation and Skills,Intellectual Property Office,24/10/2014,Travel and subsistence UK,Innovation Directorate,Leasedrive Velo Rental Management Ltd,INV00066282,30.00,Not applicable,
Department for Business Innovation and Skills,Intellectual Property Office,31/10/2014,Travel and subsistence UK,"People, Property and Services Directorate",HRG UK,240883246,30.51,Not applicable,
Department for Business Innovation and Skills,Intellectual Property Office,31/10/2014,Travel and subsistence UK,"People, Property and Services Directorate",HRG UK,240871142,30.51,Not applicable,
Department for Business Innovation and Skills,Intellectual Property Office,31/10/2014,Travel and subsistence UK,Patents Directorate,HRG UK,240872812,30.91,Not applicable,
Department for Business Innovation and Skills,Intellectual Property Office,16/10/2014,Travel and subsistence UK,Business Support Directorate,Veezu Ltd T/A Dragon Taxis (Newport),2378,31.20,Not applicable,
Department for Business Innovation and Skills,Intellectual Property Office,31/10/2014,Travel and subsistence UK,Business Support Directorate,HRG UK,240557553,31.51,Not applicable,
Department for Business Innovation and Skills,Intellectual Property Office,31/10/2014,Travel and subsistence UK,Innovation Directorate,HRG UK,240818162,31.61,Not applicable,
Department for Business Innovation and Skills,Intellectual Property Office,31/10/2014,Travel and subsistence UK,"People, Property and Services Directorate",HRG UK,240867306,31.81,Not applicable,
Department for Business Innovation and Skills,Intellectual Property Office,31/10/2014,Travel and subsistence UK,"People, Property and Services Directorate",HRG UK,240756424,31.81,Not applicable,
Department for Business Innovation and Skills,Intellectual Property Office,31/10/2014,Travel and subsistence UK,Copyright and IP Enforcement Directorate,HRG UK,240607125,32.40,Not applicable,
Department for Business Innovation and Skills,Intellectual Property Office,31/10/2014,Travel and subsistence UK,International Policy Directorate,HRG UK,240837312,32.40,Not applicable,
Department for Business Innovation and Skills,Intellectual Property Office,31/10/2014,Travel and subsistence UK,Business Support Directorate,HRG UK,240837306,32.50,Not applicable,
Department for Business Innovation and Skills,Intellectual Property Office,31/10/2014,Travel and subsistence UK,Copyright and IP Enforcement Directorate,HRG UK,240837315,32.71,Not applicable,
Department for Business Innovation and Skills,Intellectual Property Office,16/10/2014,Travel and subsistence UK,Innovation Directorate,Veezu Ltd T/A Dragon Taxis (Newport),2378,33.00,Not applicable,
Department for Business Innovation and Skills,Intellectual Property Office,31/10/2014,Travel and subsistence UK,International Policy Directorate,HRG UK,240871149,33.21,Not applicable,
Department for Business Innovation and Skills,Intellectual Property Office,21/10/2014,Travel and subsistence UK,"People, Property and Services Directorate",Personal expenses name witheld,ER125198,34.00,Not applicable,
Department for Business Innovation and Skills,Intellectual Property Office,16/10/2014,Travel and subsistence UK,Central Support,Veezu Ltd T/A Dragon Taxis (Newport),2378,34.20,Not applicable,
Department for Business Innovation and Skills,Intellectual Property Office,31/10/2014,Travel and subsistence UK,Copyright and IP Enforcement Directorate,HRG UK,240749858,34.31,Not applicable,
Department for Business Innovation and Skills,Intellectual Property Office,31/10/2014,Travel and subsistence UK,Trade Marks Directorate,HRG UK,240845406,34.41,Not applicable,
Department for Business Innovation and Skills,Intellectual Property Office,31/10/2014,Travel and subsistence UK,Innovation Directorate,HRG UK,240818163,34.91,Not applicable,
Department for Business Innovation and Skills,Intellectual Property Office,23/10/2014,Travel and subsistence UK,Innovation Directorate,Personal expenses name witheld,ER125341,34.94,Not applicable,
Department for Business Innovation and Skills,Intellectual Property Office,14/10/2014,Travel and subsistence UK,Innovation Directorate,Personal expenses name witheld,ER124577,35.10,Not applicable,
Department for Business Innovation and Skills,Intellectual Property Office,09/10/2014,Travel and subsistence UK,International Policy Directorate,Personal expenses name witheld,ER124015,35.40,Not applicable,
Department for Business Innovation and Skills,Intellectual Property Office,31/10/2014,Travel and subsistence UK,Patents Directorate,HRG UK,240745170,35.80,Not applicable,
Department for Business Innovation and Skills,Intellectual Property Office,31/10/2014,Travel and subsistence UK,International Policy Directorate,HRG UK,240837313,36.01,Not applicable,
Department for Business Innovation and Skills,Intellectual Property Office,07/10/2014,Travel and subsistence UK,Copyright and IP Enforcement Directorate,Personal expenses name witheld,ER123933,36.60,Not applicable,
Department for Business Innovation and Skills,Intellectual Property Office,08/10/2014,Travel and subsistence UK,Copyright and IP Enforcement Directorate,Leasedrive Velo Rental Management Ltd,RHI01246751,36.82,Not applicable,
Department for Business Innovation and Skills,Intellectual Property Office,31/10/2014,Travel and subsistence UK,Innovation Directorate,HRG UK,240600943,37.49,Not applicable,
Department for Business Innovation and Skills,Intellectual Property Office,31/10/2014,Travel and subsistence UK,International Policy Directorate,HRG UK,240642876,37.49,Not applicable,
Department for Business Innovation and Skills,Intellectual Property Office,31/10/2014,Travel and subsistence UK,International Policy Directorate,HRG UK,240865374,37.49,Not applicable,
Department for Business Innovation and Skills,Intellectual Property Office,13/10/2014,Travel and subsistence UK,Copyright and IP Enforcement Directorate,Personal expenses name witheld,ER124436,37.80,Not applicable,
Department for Business Innovation and Skills,Intellectual Property Office,17/10/2014,Travel and subsistence UK,Innovation Directorate,Leasedrive Velo Rental Management Ltd,RHI01252653,37.94,Not applicable,
Department for Business Innovation and Skills,Intellectual Property Office,28/10/2014,Travel and subsistence UK,Innovation Directorate,Leasedrive Velo Rental Management Ltd,RHI01233090,37.94,Not applicable,
Department for Business Innovation and Skills,Intellectual Property Office,20/10/2014,Travel and subsistence UK,Trade Marks Directorate,Leasedrive Velo Rental Management Ltd,RHI01254374,37.94,Not applicable,
Department for Business Innovation and Skills,Intellectual Property Office,31/10/2014,Travel and subsistence UK,International Policy Directorate,HRG UK,240714488,38.19,Not applicable,
Department for Business Innovation and Skills,Intellectual Property Office,31/10/2014,Travel and subsistence UK,International Policy Directorate,HRG UK,240654035,38.39,Not applicable,
Department for Business Innovation and Skills,Intellectual Property Office,31/10/2014,Travel and subsistence UK,International Policy Directorate,HRG UK,240654032,38.39,Not applicable,
Department for Business Innovation and Skills,Intellectual Property Office,30/10/2014,Travel and subsistence UK,Innovation Directorate,Personal expenses name witheld,ER125698,38.40,Not applicable,
Department for Business Innovation and Skills,Intellectual Property Office,31/10/2014,Travel and subsistence UK,Patents Directorate,HRG UK,240642874,39.28,Not applicable,
Department for Business Innovation and Skills,Intellectual Property Office,31/10/2014,Travel and subsistence UK,Central Support,HRG UK,240557118,39.28,Not applicable,
Department for Business Innovation and Skills,Intellectual Property Office,31/10/2014,Travel and subsistence UK,Patents Directorate,HRG UK,240642871,39.28,Not applicable,
Department for Business Innovation and Skills,Intellectual Property Office,31/10/2014,Travel and subsistence UK,International Policy Directorate,HRG UK,240733919,39.75,Not applicable,
Department for Business Innovation and Skills,Intellectual Property Office,20/10/2014,Travel and subsistence UK,Finance Directorate,Personal expenses name witheld,ER124536,39.85,Not applicable,
Department for Business Innovation and Skills,Intellectual Property Office,22/10/2014,Travel and subsistence UK,Patents Directorate,Leasedrive Velo Rental Management Ltd,RHI01244641,41.27,Not applicable,
Department for Business Innovation and Skills,Intellectual Property Office,31/10/2014,Travel and subsistence UK,Patents Directorate,HRG UK,240745168,41.39,Not applicable,
Department for Business Innovation and Skills,Intellectual Property Office,31/10/2014,Travel and subsistence UK,International Policy Directorate,HRG UK,240737585,41.39,Not applicable,
Department for Business Innovation and Skills,Intellectual Property Office,16/10/2014,Travel and subsistence UK,Innovation Directorate,Veezu Ltd T/A Dragon Taxis (Newport),2378,41.40,Not applicable,
Department for Business Innovation and Skills,Intellectual Property Office,31/10/2014,Travel and subsistence UK,Innovation Directorate,HRG UK,240557776,41.48,Not applicable,
Department for Business Innovation and Skills,Intellectual Property Office,01/10/2014,Travel and subsistence UK,International Policy Directorate,Leasedrive Velo Rental Management Ltd,RHI01235572,41.60,Not applicable,
Department for Business Innovation and Skills,Intellectual Property Office,31/10/2014,Travel and subsistence UK,Innovation Directorate,HRG UK,240585343,41.89,Not applicable,
Department for Business Innovation and Skills,Intellectual Property Office,31/10/2014,Travel and subsistence UK,Innovation Directorate,HRG UK,240585341,41.89,Not applicable,
Department for Business Innovation and Skills,Intellectual Property Office,31/10/2014,Travel and subsistence UK,Copyright and IP Enforcement Directorate,HRG UK,240654033,41.97,Not applicable,
Department for Business Innovation and Skills,Intellectual Property Office,31/10/2014,Travel and subsistence UK,Copyright and IP Enforcement Directorate,HRG UK,240837302,43.48,Not applicable,
Department for Business Innovation and Skills,Intellectual Property Office,03/10/2014,Travel and subsistence UK,Patents Directorate,Personal expenses name witheld,ER124034,43.62,Not applicable,
Department for Business Innovation and Skills,Intellectual Property Office,03/10/2014,Travel and subsistence UK,Copyright and IP Enforcement Directorate,Leasedrive Velo Rental Management Ltd,RHI01235857,43.73,Not applicable,
Department for Business Innovation and Skills,Intellectual Property Office,22/10/2014,Travel and subsistence UK,Patents Directorate,Leasedrive Velo Rental Management Ltd,RHI01251253,43.73,Not applicable,
Department for Business Innovation and Skills,Intellectual Property Office,29/10/2014,Travel and subsistence UK,Patents Directorate,Leasedrive Velo Rental Management Ltd,RHI01261535,43.73,Not applicable,
Department for Business Innovation and Skills,Intellectual Property Office,16/10/2014,Travel and subsistence UK,Copyright and IP Enforcement Directorate,Leasedrive Velo Rental Management Ltd,RHI01252650,43.73,Not applicable,
Department for Business Innovation and Skills,Intellectual Property Office,23/10/2014,Travel and subsistence UK,Copyright and IP Enforcement Directorate,Leasedrive Velo Rental Management Ltd,RHI01256649,43.73,Not applicable,
Department for Business Innovation and Skills,Intellectual Property Office,31/10/2014,Travel and subsistence UK,International Policy Directorate,HRG UK,240871151,44.87,Not applicable,
Department for Business Innovation and Skills,Intellectual Property Office,31/10/2014,Travel and subsistence UK,Copyright and IP Enforcement Directorate,HRG UK,240607113,44.96,Not applicable,
Department for Business Innovation and Skills,Intellectual Property Office,31/10/2014,Travel and subsistence UK,Patents Directorate,HRG UK,240861242,44.96,Not applicable,
Department for Business Innovation and Skills,Intellectual Property Office,31/10/2014,Travel and subsistence UK,Trade Marks Directorate,HRG UK,240749851,44.96,Not applicable,
Department for Business Innovation and Skills,Intellectual Property Office,31/10/2014,Travel and subsistence UK,Copyright and IP Enforcement Directorate,HRG UK,240607110,44.96,Not applicable,
Department for Business Innovation and Skills,Intellectual Property Office,31/10/2014,Travel and subsistence UK,Innovation Directorate,HRG UK,240745163,45.37,Not applicable,
Department for Business Innovation and Skills,Intellectual Property Office,31/10/2014,Travel and subsistence UK,International Policy Directorate,HRG UK,240733915,46.51,Not applicable,
Department for Business Innovation and Skills,Intellectual Property Office,27/10/2014,Travel and subsistence UK,Patents Directorate,Personal expenses name witheld,ER125540,46.66,Not applicable,
Department for Business Innovation and Skills,Intellectual Property Office,29/10/2014,Travel and subsistence UK,Patents Directorate,Leasedrive Velo Rental Management Ltd,RHI01261537,46.78,Not applicable,
Department for Business Innovation and Skills,Intellectual Property Office,10/10/2014,Travel and subsistence UK,Copyright and IP Enforcement Directorate,Personal expenses name witheld,ER124542,46.81,Not applicable,
Department for Business Innovation and Skills,Intellectual Property Office,31/10/2014,Travel and subsistence UK,International Policy Directorate,HRG UK,240838028,47.47,Not applicable,
Department for Business Innovation and Skills,Intellectual Property Office,08/10/2014,Travel and subsistence UK,Innovation Directorate,Personal expenses name witheld,ER123993,47.70,Not applicable,
Department for Business Innovation and Skills,Intellectual Property Office,23/10/2014,Travel and subsistence UK,Patents Directorate,Personal expenses name witheld,ER124993,47.80,Not applicable,
Department for Business Innovation and Skills,Intellectual Property Office,31/10/2014,Travel and subsistence UK,International Policy Directorate,HRG UK,240654031,47.86,Not applicable,
Department for Business Innovation and Skills,Intellectual Property Office,31/10/2014,Travel and subsistence UK,Innovation Directorate,HRG UK,240689532,47.86,Not applicable,
Department for Business Innovation and Skills,Intellectual Property Office,31/10/2014,Travel and subsistence UK,International Policy Directorate,HRG UK,240654034,47.86,Not applicable,
Department for Business Innovation and Skills,Intellectual Property Office,31/10/2014,Travel and subsistence UK,Business Support Directorate,HRG UK,240716204,47.87,Not applicable,
Department for Business Innovation and Skills,Intellectual Property Office,31/10/2014,Travel and subsistence UK,Patents Directorate,HRG UK,240818166,48.45,Not applicable,
Department for Business Innovation and Skills,Intellectual Property Office,31/10/2014,Travel and subsistence UK,Patents Directorate,HRG UK,240634942,48.45,Not applicable,
Department for Business Innovation and Skills,Intellectual Property Office,16/10/2014,Travel and subsistence UK,"People, Property and Services Directorate",Veezu Ltd T/A Dragon Taxis (Newport),2378,48.60,Not applicable,
Department for Business Innovation and Skills,Intellectual Property Office,16/10/2014,Travel and subsistence UK,Copyright and IP Enforcement Directorate,Leasedrive Velo Rental Management Ltd,RHI01252651,49.42,Not applicable,
Department for Business Innovation and Skills,Intellectual Property Office,31/10/2014,Travel and subsistence UK,Innovation Directorate,HRG UK,240557775,49.87,Not applicable,
Department for Business Innovation and Skills,Intellectual Property Office,31/10/2014,Travel and subsistence UK,Copyright and IP Enforcement Directorate,HRG UK,240550553,49.87,Not applicable,
Department for Business Innovation and Skills,Intellectual Property Office,16/10/2014,Travel and subsistence UK,Patents Directorate,Veezu Ltd T/A Dragon Taxis (Newport),2378,50.40,Not applicable,
Department for Business Innovation and Skills,Intellectual Property Office,31/10/2014,Travel and subsistence UK,International Policy Directorate,HRG UK,240714487,50.65,Not applicable,
Department for Business Innovation and Skills,Intellectual Property Office,31/10/2014,Travel and subsistence UK,Copyright and IP Enforcement Directorate,HRG UK,240607112,50.86,Not applicable,
Department for Business Innovation and Skills,Intellectual Property Office,31/10/2014,Travel and subsistence UK,International Policy Directorate,HRG UK,240871145,50.86,Not applicable,
Department for Business Innovation and Skills,Intellectual Property Office,31/10/2014,Travel and subsistence UK,Copyright and IP Enforcement Directorate,HRG UK,240607111,51.46,Not applicable,
Department for Business Innovation and Skills,Intellectual Property Office,21/10/2014,Travel and subsistence UK,Copyright and IP Enforcement Directorate,Personal expenses name witheld,ER125234,51.65,Not applicable,
Department for Business Innovation and Skills,Intellectual Property Office,31/10/2014,Travel and subsistence UK,International Policy Directorate,HRG UK,240733914,51.75,Not applicable,
Department for Business Innovation and Skills,Intellectual Property Office,31/10/2014,Travel and subsistence UK,Innovation Directorate,HRG UK,240693357,51.95,Not applicable,
Department for Business Innovation and Skills,Intellectual Property Office,31/10/2014,Travel and subsistence UK,Innovation Directorate,HRG UK,240693522,51.95,Not applicable,
Department for Business Innovation and Skills,Intellectual Property Office,31/10/2014,Travel and subsistence UK,Innovation Directorate,HRG UK,240693435,51.95,Not applicable,
Department for Business Innovation and Skills,Intellectual Property Office,27/10/2014,Travel and subsistence UK,Business Support Directorate,Personal expenses name witheld,ER125499,52.00,Not applicable,
Department for Business Innovation and Skills,Intellectual Property Office,02/10/2014,Travel and subsistence UK,Patents Directorate,Personal expenses name witheld,ER123963,52.20,Not applicable,
Department for Business Innovation and Skills,Intellectual Property Office,31/10/2014,Travel and subsistence UK,Copyright and IP Enforcement Directorate,HRG UK,240837303,52.40,Not applicable,
Department for Business Innovation and Skills,Intellectual Property Office,31/10/2014,Travel and subsistence UK,Patents Directorate,HRG UK,240749861,52.85,Not applicable,
Department for Business Innovation and Skills,Intellectual Property Office,31/10/2014,Travel and subsistence UK,Patents Directorate,HRG UK,240749865,52.85,Not applicable,
Department for Business Innovation and Skills,Intellectual Property Office,31/10/2014,Travel and subsistence UK,Copyright and IP Enforcement Directorate,HRG UK,240818161,52.85,Not applicable,
Department for Business Innovation and Skills,Intellectual Property Office,31/10/2014,Travel and subsistence UK,Patents Directorate,HRG UK,240749863,52.85,Not applicable,
Department for Business Innovation and Skills,Intellectual Property Office,31/10/2014,Travel and subsistence UK,Copyright and IP Enforcement Directorate,HRG UK,240559363,52.85,Not applicable,
Department for Business Innovation and Skills,Intellectual Property Office,31/10/2014,Travel and subsistence UK,Copyright and IP Enforcement Directorate,HRG UK,240837295,52.85,Not applicable,
Department for Business Innovation and Skills,Intellectual Property Office,31/10/2014,Travel and subsistence UK,Patents Directorate,HRG UK,240784316,52.85,Not applicable,
Department for Business Innovation and Skills,Intellectual Property Office,31/10/2014,Travel and subsistence UK,Copyright and IP Enforcement Directorate,HRG UK,240550552,53.45,Not applicable,
Department for Business Innovation and Skills,Intellectual Property Office,31/10/2014,Travel and subsistence UK,International Policy Directorate,HRG UK,240585333,53.64,Not applicable,
Department for Business Innovation and Skills,Intellectual Property Office,31/10/2014,Travel and subsistence UK,Innovation Directorate,Leasedrive Velo Rental Management Ltd,RHI01193973,53.78,Not applicable,
Department for Business Innovation and Skills,Intellectual Property Office,31/10/2014,Travel and subsistence UK,Innovation Directorate,HRG UK,240673175,53.86,Not applicable,
Department for Business Innovation and Skills,Intellectual Property Office,31/10/2014,Travel and subsistence UK,Copyright and IP Enforcement Directorate,HRG UK,240757327,54.24,Not applicable,
Department for Business Innovation and Skills,Intellectual Property Office,31/10/2014,Travel and subsistence UK,Copyright and IP Enforcement Directorate,HRG UK,240547989,54.95,Not applicable,
Department for Business Innovation and Skills,Intellectual Property Office,29/10/2014,Travel and subsistence UK,Patents Directorate,Leasedrive Velo Rental Management Ltd,RHI01254976,55.03,Not applicable,
Department for Business Innovation and Skills,Intellectual Property Office,16/10/2014,Travel and subsistence UK,Copyright and IP Enforcement Directorate,Veezu Ltd T/A Dragon Taxis (Newport),2378,55.20,Not applicable,
Department for Business Innovation and Skills,Intellectual Property Office,10/10/2014,Travel and subsistence UK,International Policy Directorate,Personal expenses name witheld,ER124373,55.55,Not applicable,
Department for Business Innovation and Skills,Intellectual Property Office,07/10/2014,Travel and subsistence UK,Innovation Directorate,Personal expenses name witheld,ER123939,55.75,Not applicable,
Department for Business Innovation and Skills,Intellectual Property Office,07/10/2014,Travel and subsistence UK,Copyright and IP Enforcement Directorate,Personal expenses name witheld,ER124154,55.80,Not applicable,
Department for Business Innovation and Skills,Intellectual Property Office,31/10/2014,Travel and subsistence UK,Copyright and IP Enforcement Directorate,HRG UK,240834508,56.43,Not applicable,
Department for Business Innovation and Skills,Intellectual Property Office,31/10/2014,Travel and subsistence UK,Copyright and IP Enforcement Directorate,HRG UK,240834827,56.43,Not applicable,
Department for Business Innovation and Skills,Intellectual Property Office,31/10/2014,Travel and subsistence UK,"People, Property and Services Directorate",HRG UK,240867305,56.43,Not applicable,
Department for Business Innovation and Skills,Intellectual Property Office,31/10/2014,Travel and subsistence UK,Copyright and IP Enforcement Directorate,HRG UK,240837309,56.43,Not applicable,
Department for Business Innovation and Skills,Intellectual Property Office,31/10/2014,Travel and subsistence UK,Copyright and IP Enforcement Directorate,HRG UK,240837307,56.43,Not applicable,
Department for Business Innovation and Skills,Intellectual Property Office,31/10/2014,Travel and subsistence UK,International Policy Directorate,HRG UK,240818184,56.43,Not applicable,
Department for Business Innovation and Skills,Intellectual Property Office,31/10/2014,Travel and subsistence UK,Copyright and IP Enforcement Directorate,HRG UK,240834594,56.43,Not applicable,
Department for Business Innovation and Skills,Intellectual Property Office,31/10/2014,Travel and subsistence UK,Copyright and IP Enforcement Directorate,HRG UK,240754421,56.43,Not applicable,
Department for Business Innovation and Skills,Intellectual Property Office,31/10/2014,Travel and subsistence UK,Copyright and IP Enforcement Directorate,HRG UK,240855714,56.43,Not applicable,
Department for Business Innovation and Skills,Intellectual Property Office,31/10/2014,Travel and subsistence UK,Copyright and IP Enforcement Directorate,HRG UK,240754422,56.43,Not applicable,
Department for Business Innovation and Skills,Intellectual Property Office,31/10/2014,Travel and subsistence UK,"People, Property and Services Directorate",HRG UK,240733916,56.43,Not applicable,
Department for Business Innovation and Skills,Intellectual Property Office,31/10/2014,Travel and subsistence UK,Patents Directorate,HRG UK,240883530,56.85,Not applicable,
Department for Business Innovation and Skills,Intellectual Property Office,31/10/2014,Travel and subsistence UK,Innovation Directorate,HRG UK,240759194,56.85,Not applicable,
Department for Business Innovation and Skills,Intellectual Property Office,31/10/2014,Travel and subsistence UK,Patents Directorate,HRG UK,240850522,56.85,Not applicable,
Department for Business Innovation and Skills,Intellectual Property Office,31/10/2014,Travel and subsistence UK,Innovation Directorate,HRG UK,240837290,57.44,Not applicable,
Department for Business Innovation and Skills,Intellectual Property Office,31/10/2014,Travel and subsistence UK,Copyright and IP Enforcement Directorate,HRG UK,240548049,57.44,Not applicable,
Department for Business Innovation and Skills,Intellectual Property Office,31/10/2014,Travel and subsistence UK,Innovation Directorate,HRG UK,240668701,57.44,Not applicable,
Department for Business Innovation and Skills,Intellectual Property Office,31/10/2014,Travel and subsistence UK,Innovation Directorate,HRG UK,240765554,57.44,Not applicable,
Department for Business Innovation and Skills,Intellectual Property Office,31/10/2014,Travel and subsistence UK,Innovation Directorate,HRG UK,240818176,57.44,Not applicable,
Department for Business Innovation and Skills,Intellectual Property Office,31/10/2014,Travel and subsistence UK,Innovation Directorate,HRG UK,240585335,57.44,Not applicable,
Department for Business Innovation and Skills,Intellectual Property Office,16/10/2014,Travel and subsistence UK,Business Support Directorate,Personal expenses name witheld,ER124947,57.60,Not applicable,
Department for Business Innovation and Skills,Intellectual Property Office,31/10/2014,Travel and subsistence UK,Business Support Directorate,HRG UK,240618589,58.63,Not applicable,
Department for Business Innovation and Skills,Intellectual Property Office,16/10/2014,Travel and subsistence UK,"People, Property and Services Directorate",Veezu Ltd T/A Dragon Taxis (Newport),2378,60.00,Not applicable,
Department for Business Innovation and Skills,Intellectual Property Office,31/10/2014,Travel and subsistence UK,Copyright and IP Enforcement Directorate,HRG UK,240818180,60.43,Not applicable,
Department for Business Innovation and Skills,Intellectual Property Office,31/10/2014,Travel and subsistence UK,Copyright and IP Enforcement Directorate,HRG UK,240818182,60.43,Not applicable,
Department for Business Innovation and Skills,Intellectual Property Office,31/10/2014,Travel and subsistence UK,Trade Marks Directorate,HRG UK,240818173,60.52,Not applicable,
Department for Business Innovation and Skills,Intellectual Property Office,31/10/2014,Travel and subsistence UK,"People, Property and Services Directorate",HRG UK,240624059,60.52,Not applicable,
Department for Business Innovation and Skills,Intellectual Property Office,16/10/2014,Travel and subsistence UK,"People, Property and Services Directorate",Veezu Ltd T/A Dragon Taxis (Newport),2378,61.20,Not applicable,
Department for Business Innovation and Skills,Intellectual Property Office,31/10/2014,Travel and subsistence UK,International Policy Directorate,HRG UK,240733913,61.49,Not applicable,
Department for Business Innovation and Skills,Intellectual Property Office,31/10/2014,Travel and subsistence UK,Business Support Directorate,HRG UK,240768890,61.84,Not applicable,
Department for Business Innovation and Skills,Intellectual Property Office,07/10/2014,Travel and subsistence UK,Innovation Directorate,Personal expenses name witheld,ER123938,62.50,Not applicable,
Department for Business Innovation and Skills,Intellectual Property Office,31/10/2014,Travel and subsistence UK,Business Support Directorate,HRG UK,240557554,63.43,Not applicable,
Department for Business Innovation and Skills,Intellectual Property Office,15/10/2014,Travel and subsistence UK,Innovation Directorate,Leasedrive Velo Rental Management Ltd,RHI01251255,63.73,Not applicable,
Department for Business Innovation and Skills,Intellectual Property Office,31/10/2014,Travel and subsistence UK,Innovation Directorate,HRG UK,240737571,64.01,Not applicable,
Department for Business Innovation and Skills,Intellectual Property Office,31/10/2014,Travel and subsistence UK,International Policy Directorate,HRG UK,240679337,64.01,Not applicable,
Department for Business Innovation and Skills,Intellectual Property Office,31/10/2014,Travel and subsistence UK,Copyright and IP Enforcement Directorate,HRG UK,240714485,64.01,Not applicable,
Department for Business Innovation and Skills,Intellectual Property Office,31/10/2014,Travel and subsistence UK,Copyright and IP Enforcement Directorate,HRG UK,240851893,64.01,Not applicable,
Department for Business Innovation and Skills,Intellectual Property Office,31/10/2014,Travel and subsistence UK,Copyright and IP Enforcement Directorate,HRG UK,240837314,64.01,Not applicable,
Department for Business Innovation and Skills,Intellectual Property Office,31/10/2014,Travel and subsistence UK,Copyright and IP Enforcement Directorate,HRG UK,240885679,64.01,Not applicable,
Department for Business Innovation and Skills,Intellectual Property Office,31/10/2014,Travel and subsistence UK,Patents Directorate,HRG UK,240673767,64.22,Not applicable,
Department for Business Innovation and Skills,Intellectual Property Office,31/10/2014,Travel and subsistence UK,Copyright and IP Enforcement Directorate,HRG UK,240585323,64.52,Not applicable,
Department for Business Innovation and Skills,Intellectual Property Office,14/10/2014,Travel and subsistence UK,Innovation Directorate,Personal expenses name witheld,ER124741,65.31,Not applicable,
Department for Business Innovation and Skills,Intellectual Property Office,31/10/2014,Travel and subsistence UK,Business Support Directorate,HRG UK,240733565,65.42,Not applicable,
Department for Business Innovation and Skills,Intellectual Property Office,29/10/2014,Travel and subsistence UK,Trade Marks Directorate,Personal expenses name witheld,52588,65.50,Not applicable,
Department for Business Innovation and Skills,Intellectual Property Office,28/10/2014,Travel and subsistence UK,International Policy Directorate,Personal expenses name witheld,ER125549,65.60,Not applicable,
Department for Business Innovation and Skills,Intellectual Property Office,21/10/2014,Travel and subsistence UK,Transformational Change,Personal expenses name witheld,ER124951,66.00,Not applicable,
Department for Business Innovation and Skills,Intellectual Property Office,31/10/2014,Travel and subsistence UK,Copyright and IP Enforcement Directorate,HRG UK,240619126,66.02,Not applicable,
Department for Business Innovation and Skills,Intellectual Property Office,13/10/2014,Travel and subsistence UK,Innovation Directorate,Personal expenses name witheld,ER124533,66.70,Not applicable,
Department for Business Innovation and Skills,Intellectual Property Office,31/10/2014,Travel and subsistence UK,Business Support Directorate,HRG UK,240837305,66.90,Not applicable,
Department for Business Innovation and Skills,Intellectual Property Office,31/10/2014,Travel and subsistence UK,Patents Directorate,HRG UK,240749862,67.01,Not applicable,
Department for Business Innovation and Skills,Intellectual Property Office,31/10/2014,Travel and subsistence UK,Patents Directorate,HRG UK,240749860,67.01,Not applicable,
Department for Business Innovation and Skills,Intellectual Property Office,31/10/2014,Travel and subsistence UK,Patents Directorate,HRG UK,240749864,67.01,Not applicable,
Department for Business Innovation and Skills,Intellectual Property Office,14/10/2014,Travel and subsistence UK,Copyright and IP Enforcement Directorate,Personal expenses name witheld,ER124747,67.60,Not applicable,
Department for Business Innovation and Skills,Intellectual Property Office,02/10/2014,Travel and subsistence UK,Patents Directorate,Personal expenses name witheld,ER123962,68.29,Not applicable,
Department for Business Innovation and Skills,Intellectual Property Office,16/10/2014,Travel and subsistence UK,Copyright and IP Enforcement Directorate,Veezu Ltd T/A Dragon Taxis (Newport),2378,70.20,Not applicable,
Department for Business Innovation and Skills,Intellectual Property Office,16/10/2014,Travel and subsistence UK,Innovation Directorate,Veezu Ltd T/A Dragon Taxis (Newport),2378,70.20,Not applicable,
Department for Business Innovation and Skills,Intellectual Property Office,31/10/2014,Travel and subsistence UK,Innovation Directorate,HRG UK,240607114,70.39,Not applicable,
Department for Business Innovation and Skills,Intellectual Property Office,31/10/2014,Travel and subsistence UK,Trade Marks Directorate,HRG UK,240687162,70.39,Not applicable,
Department for Business Innovation and Skills,Intellectual Property Office,31/10/2014,Travel and subsistence UK,Trade Marks Directorate,HRG UK,240680282,70.39,Not applicable,
Department for Business Innovation and Skills,Intellectual Property Office,10/10/2014,Travel and subsistence UK,Patents Directorate,Personal expenses name witheld,ER124537,71.53,Not applicable,
Department for Business Innovation and Skills,Intellectual Property Office,31/10/2014,Travel and subsistence UK,Copyright and IP Enforcement Directorate,HRG UK,240585332,71.61,Not applicable,
Department for Business Innovation and Skills,Intellectual Property Office,31/10/2014,Travel and subsistence UK,Copyright and IP Enforcement Directorate,HRG UK,240837300,71.61,Not applicable,
Department for Business Innovation and Skills,Intellectual Property Office,31/10/2014,Travel and subsistence UK,Copyright and IP Enforcement Directorate,HRG UK,240818186,71.61,Not applicable,
Department for Business Innovation and Skills,Intellectual Property Office,16/10/2014,Travel and subsistence UK,International Policy Directorate,Veezu Ltd T/A Dragon Taxis (Newport),2378,72.60,Not applicable,
Department for Business Innovation and Skills,Intellectual Property Office,14/10/2014,Travel and subsistence UK,IMPROVE Project,Personal expenses name witheld,ER124751,72.90,Not applicable,
Department for Business Innovation and Skills,Intellectual Property Office,31/10/2014,Travel and subsistence UK,Copyright and IP Enforcement Directorate,HRG UK,240749857,73.40,Not applicable,
Department for Business Innovation and Skills,Intellectual Property Office,31/10/2014,Travel and subsistence UK,Innovation Directorate,HRG UK,240737576,74.49,Not applicable,
Department for Business Innovation and Skills,Intellectual Property Office,10/10/2014,Travel and subsistence UK,Patents Directorate,Personal expenses name witheld,ER124535,74.50,Not applicable,
Department for Business Innovation and Skills,Intellectual Property Office,31/10/2014,Travel and subsistence UK,International Policy Directorate,HRG UK,240857080,75.89,Not applicable,
Department for Business Innovation and Skills,Intellectual Property Office,21/10/2014,Travel and subsistence UK,Innovation Directorate,Leasedrive Velo Rental Management Ltd,RHI01251257,75.89,Not applicable,
Department for Business Innovation and Skills,Intellectual Property Office,31/10/2014,Travel and subsistence UK,International Policy Directorate,HRG UK,240598928,75.89,Not applicable,
Department for Business Innovation and Skills,Intellectual Property Office,31/10/2014,Travel and subsistence UK,Trade Marks Directorate,HRG UK,240683662,76.38,Not applicable,
Department for Business Innovation and Skills,Intellectual Property Office,31/10/2014,Travel and subsistence UK,Trade Marks Directorate,HRG UK,240687871,76.58,Not applicable,
Department for Business Innovation and Skills,Intellectual Property Office,31/10/2014,Travel and subsistence UK,Trade Marks Directorate,HRG UK,240687603,76.58,Not applicable,
Department for Business Innovation and Skills,Intellectual Property Office,31/10/2014,Travel and subsistence UK,Trade Marks Directorate,HRG UK,240687872,76.58,Not applicable,
Department for Business Innovation and Skills,Intellectual Property Office,31/10/2014,Travel and subsistence UK,Patents Directorate,HRG UK,240745169,76.88,Not applicable,
Department for Business Innovation and Skills,Intellectual Property Office,24/10/2014,Travel and subsistence UK,Innovation Directorate,Leasedrive Velo Rental Management Ltd,RHI01254977,77.39,Not applicable,
Department for Business Innovation and Skills,Intellectual Property Office,14/10/2014,Travel and subsistence UK,Central Support,Personal expenses name witheld,ER123353,77.45,Not applicable,
Department for Business Innovation and Skills,Intellectual Property Office,31/10/2014,Travel and subsistence UK,Patents Directorate,HRG UK,240825448,78.38,Not applicable,
Department for Business Innovation and Skills,Intellectual Property Office,31/10/2014,Travel and subsistence UK,Patents Directorate,HRG UK,240675340,78.78,Not applicable,
Department for Business Innovation and Skills,Intellectual Property Office,31/10/2014,Travel and subsistence UK,Innovation Directorate,HRG UK,240714479,78.97,Not applicable,
Department for Business Innovation and Skills,Intellectual Property Office,31/10/2014,Travel and subsistence UK,Innovation Directorate,HRG UK,240714483,78.97,Not applicable,
Department for Business Innovation and Skills,Intellectual Property Office,31/10/2014,Travel and subsistence UK,Innovation Directorate,HRG UK,240714482,78.97,Not applicable,
Department for Business Innovation and Skills,Intellectual Property Office,17/10/2014,Travel and subsistence UK,Innovation Directorate,Personal expenses name witheld,ER125095,79.35,Not applicable,
Department for Business Innovation and Skills,Intellectual Property Office,08/10/2014,Travel and subsistence UK,International Policy Directorate,Personal expenses name witheld,ER124336,79.65,Not applicable,
Department for Business Innovation and Skills,Intellectual Property Office,31/10/2014,Travel and subsistence UK,"People, Property and Services Directorate",HRG UK,240624060,80.58,Not applicable,
Department for Business Innovation and Skills,Intellectual Property Office,31/10/2014,Travel and subsistence UK,Copyright and IP Enforcement Directorate,HRG UK,240624025,80.58,Not applicable,
Department for Business Innovation and Skills,Intellectual Property Office,31/10/2014,Travel and subsistence UK,Copyright and IP Enforcement Directorate,HRG UK,240660215,81.87,Not applicable,
Department for Business Innovation and Skills,Intellectual Property Office,31/10/2014,Travel and subsistence UK,International Policy Directorate,HRG UK,240675341,81.87,Not applicable,
Department for Business Innovation and Skills,Intellectual Property Office,31/10/2014,Travel and subsistence UK,Innovation Directorate,HRG UK,240616742,81.99,Not applicable,
Department for Business Innovation and Skills,Intellectual Property Office,16/10/2014,Travel and subsistence UK,Patents Directorate,Personal expenses name witheld,ER125053,82.37,Not applicable,
Department for Business Innovation and Skills,Intellectual Property Office,29/10/2014,Travel and subsistence UK,Patents Directorate,Leasedrive Velo Rental Management Ltd,RHI01261536,82.54,Not applicable,
Department for Business Innovation and Skills,Intellectual Property Office,24/10/2014,Travel and subsistence UK,Patents Directorate,Leasedrive Velo Rental Management Ltd,RHI01256646,82.54,Not applicable,
Department for Business Innovation and Skills,Intellectual Property Office,28/10/2014,Travel and subsistence UK,Patents Directorate,Leasedrive Velo Rental Management Ltd,RHI01237807,82.54,Not applicable,
Department for Business Innovation and Skills,Intellectual Property Office,31/10/2014,Travel and subsistence UK,Trade Marks Directorate,HRG UK,240607115,84.16,Not applicable,
Department for Business Innovation and Skills,Intellectual Property Office,31/10/2014,Travel and subsistence UK,Trade Marks Directorate,HRG UK,240607117,84.16,Not applicable,
Department for Business Innovation and Skills,Intellectual Property Office,31/10/2014,Travel and subsistence UK,Trade Marks Directorate,HRG UK,240607119,84.16,Not applicable,
Department for Business Innovation and Skills,Intellectual Property Office,31/10/2014,Travel and subsistence UK,International Policy Directorate,HRG UK,240737577,84.16,Not applicable,
Department for Business Innovation and Skills,Intellectual Property Office,31/10/2014,Travel and subsistence UK,Business Support Directorate,HRG UK,240688988,84.16,Not applicable,
Department for Business Innovation and Skills,Intellectual Property Office,31/10/2014,Travel and subsistence UK,International Policy Directorate,HRG UK,240737584,84.16,Not applicable,
Department for Business Innovation and Skills,Intellectual Property Office,31/10/2014,Travel and subsistence UK,Business Support Directorate,HRG UK,240689180,84.16,Not applicable,
Department for Business Innovation and Skills,Intellectual Property Office,31/10/2014,Travel and subsistence UK,Copyright and IP Enforcement Directorate,HRG UK,240852958,84.65,Not applicable,
Department for Business Innovation and Skills,Intellectual Property Office,13/10/2014,Travel and subsistence UK,Innovation Directorate,Personal expenses name witheld,ER124674,84.75,Not applicable,
Department for Business Innovation and Skills,Intellectual Property Office,31/10/2014,Travel and subsistence UK,International Policy Directorate,HRG UK,240585344,85.26,Not applicable,
Department for Business Innovation and Skills,Intellectual Property Office,31/10/2014,Travel and subsistence UK,International Policy Directorate,HRG UK,240737582,85.57,Not applicable,
Department for Business Innovation and Skills,Intellectual Property Office,17/10/2014,Travel and subsistence UK,Innovation Directorate,Personal expenses name witheld,ER125100,86.15,Not applicable,
Department for Business Innovation and Skills,Intellectual Property Office,31/10/2014,Travel and subsistence UK,International Policy Directorate,HRG UK,240546701,86.16,Not applicable,
Department for Business Innovation and Skills,Intellectual Property Office,31/10/2014,Travel and subsistence UK,Innovation Directorate,HRG UK,240680281,87.35,Not applicable,
Department for Business Innovation and Skills,Intellectual Property Office,31/10/2014,Travel and subsistence UK,Innovation Directorate,HRG UK,240737569,87.35,Not applicable,
Department for Business Innovation and Skills,Intellectual Property Office,31/10/2014,Travel and subsistence UK,Copyright and IP Enforcement Directorate,HRG UK,240844352,87.35,Not applicable,
Department for Business Innovation and Skills,Intellectual Property Office,31/10/2014,Travel and subsistence UK,Copyright and IP Enforcement Directorate,HRG UK,240660213,87.35,Not applicable,
Department for Business Innovation and Skills,Intellectual Property Office,31/10/2014,Travel and subsistence UK,Copyright and IP Enforcement Directorate,HRG UK,240851897,87.35,Not applicable,
Department for Business Innovation and Skills,Intellectual Property Office,31/10/2014,Travel and subsistence UK,"People, Property and Services Directorate",HRG UK,240737574,87.35,Not applicable,
Department for Business Innovation and Skills,Intellectual Property Office,31/10/2014,Travel and subsistence UK,Copyright and IP Enforcement Directorate,HRG UK,240885678,87.35,Not applicable,
Department for Business Innovation and Skills,Intellectual Property Office,03/10/2014,Travel and subsistence UK,Innovation Directorate,Leasedrive Velo Rental Management Ltd,RHI01242282,87.44,Not applicable,
Department for Business Innovation and Skills,Intellectual Property Office,17/10/2014,Travel and subsistence UK,Copyright and IP Enforcement Directorate,Leasedrive Velo Rental Management Ltd,RHI01252652,87.46,Not applicable,
Department for Business Innovation and Skills,Intellectual Property Office,08/10/2014,Travel and subsistence UK,Copyright and IP Enforcement Directorate,Leasedrive Velo Rental Management Ltd,RHI01246752,87.46,Not applicable,
Department for Business Innovation and Skills,Intellectual Property Office,31/10/2014,Travel and subsistence UK,Innovation Directorate,Leasedrive Velo Rental Management Ltd,RHI01261531,87.46,Not applicable,
Department for Business Innovation and Skills,Intellectual Property Office,29/10/2014,Travel and subsistence UK,Patents Directorate,Leasedrive Velo Rental Management Ltd,RHI01256652,87.46,Not applicable,
Department for Business Innovation and Skills,Intellectual Property Office,31/10/2014,Travel and subsistence UK,Innovation Directorate,HRG UK,240600944,87.77,Not applicable,
Department for Business Innovation and Skills,Intellectual Property Office,31/10/2014,Travel and subsistence UK,Copyright and IP Enforcement Directorate,HRG UK,240733564,87.86,Not applicable,
Department for Business Innovation and Skills,Intellectual Property Office,31/10/2014,Travel and subsistence UK,Copyright and IP Enforcement Directorate,HRG UK,240665001,87.86,Not applicable,
Department for Business Innovation and Skills,Intellectual Property Office,31/10/2014,Travel and subsistence UK,Copyright and IP Enforcement Directorate,HRG UK,240623926,88.05,Not applicable,
Department for Business Innovation and Skills,Intellectual Property Office,31/10/2014,Travel and subsistence UK,Copyright and IP Enforcement Directorate,HRG UK,240623929,88.05,Not applicable,
Department for Business Innovation and Skills,Intellectual Property Office,31/10/2014,Travel and subsistence UK,Copyright and IP Enforcement Directorate,HRG UK,240623928,88.26,Not applicable,
Department for Business Innovation and Skills,Intellectual Property Office,31/10/2014,Travel and subsistence UK,Copyright and IP Enforcement Directorate,HRG UK,240624023,88.26,Not applicable,
Department for Business Innovation and Skills,Intellectual Property Office,31/10/2014,Travel and subsistence UK,Copyright and IP Enforcement Directorate,HRG UK,240623931,88.26,Not applicable,
Department for Business Innovation and Skills,Intellectual Property Office,31/10/2014,Travel and subsistence UK,Patents Directorate,HRG UK,240883529,88.55,Not applicable,
Department for Business Innovation and Skills,Intellectual Property Office,31/10/2014,Travel and subsistence UK,Copyright and IP Enforcement Directorate,HRG UK,240818158,88.95,Not applicable,
Department for Business Innovation and Skills,Intellectual Property Office,31/10/2014,Travel and subsistence UK,International Policy Directorate,HRG UK,240737581,89.14,Not applicable,
Department for Business Innovation and Skills,Intellectual Property Office,31/10/2014,Travel and subsistence UK,Innovation Directorate,HRG UK,240749856,91.44,Not applicable,
Department for Business Innovation and Skills,Intellectual Property Office,31/10/2014,Travel and subsistence UK,"People, Property and Services Directorate",HRG UK,240607123,91.84,Not applicable,
Department for Business Innovation and Skills,Intellectual Property Office,31/10/2014,Travel and subsistence UK,Patents Directorate,HRG UK,240790932,91.84,Not applicable,
Department for Business Innovation and Skills,Intellectual Property Office,31/10/2014,Travel and subsistence UK,Patents Directorate,HRG UK,240790934,91.84,Not applicable,
Department for Business Innovation and Skills,Intellectual Property Office,08/10/2014,Travel and subsistence UK,Innovation Directorate,Personal expenses name witheld,ER124333,93.20,Not applicable,
Department for Business Innovation and Skills,Intellectual Property Office,31/10/2014,Travel and subsistence UK,Patents Directorate,HRG UK,240818169,93.33,Not applicable,
Department for Business Innovation and Skills,Intellectual Property Office,31/10/2014,Travel and subsistence UK,International Policy Directorate,HRG UK,240607122,93.33,Not applicable,
Department for Business Innovation and Skills,Intellectual Property Office,31/10/2014,Travel and subsistence UK,Patents Directorate,HRG UK,240785185,93.33,Not applicable,
Department for Business Innovation and Skills,Intellectual Property Office,31/10/2014,Travel and subsistence UK,International Policy Directorate,HRG UK,240785187,93.33,Not applicable,
Department for Business Innovation and Skills,Intellectual Property Office,31/10/2014,Travel and subsistence UK,"People, Property and Services Directorate",HRG UK,240871143,93.33,Not applicable,
Department for Business Innovation and Skills,Intellectual Property Office,31/10/2014,Travel and subsistence UK,Trade Marks Directorate,HRG UK,240585337,93.33,Not applicable,
Department for Business Innovation and Skills,Intellectual Property Office,31/10/2014,Travel and subsistence UK,Trade Marks Directorate,HRG UK,240585338,93.33,Not applicable,
Department for Business Innovation and Skills,Intellectual Property Office,31/10/2014,Travel and subsistence UK,International Policy Directorate,HRG UK,240749859,93.84,Not applicable,
Department for Business Innovation and Skills,Intellectual Property Office,22/10/2014,Travel and subsistence UK,Innovation Directorate,Leasedrive Velo Rental Management Ltd,RHI01242278,93.85,Not applicable,
Department for Business Innovation and Skills,Intellectual Property Office,31/10/2014,Travel and subsistence UK,"People, Property and Services Directorate",HRG UK,240607124,95.93,Not applicable,
Department for Business Innovation and Skills,Intellectual Property Office,31/10/2014,Travel and subsistence UK,Copyright and IP Enforcement Directorate,HRG UK,240568644,97.43,Not applicable,
Department for Business Innovation and Skills,Intellectual Property Office,31/10/2014,Travel and subsistence UK,Copyright and IP Enforcement Directorate,HRG UK,240837310,98.34,Not applicable,
Department for Business Innovation and Skills,Intellectual Property Office,31/10/2014,Travel and subsistence UK,Copyright and IP Enforcement Directorate,HRG UK,240834595,98.34,Not applicable,
Department for Business Innovation and Skills,Intellectual Property Office,31/10/2014,Travel and subsistence UK,Copyright and IP Enforcement Directorate,HRG UK,240837308,98.34,Not applicable,
Department for Business Innovation and Skills,Intellectual Property Office,31/10/2014,Travel and subsistence UK,Copyright and IP Enforcement Directorate,HRG UK,240834828,98.34,Not applicable,
Department for Business Innovation and Skills,Intellectual Property Office,31/10/2014,Travel and subsistence UK,Copyright and IP Enforcement Directorate,HRG UK,240834509,98.34,Not applicable,
Department for Business Innovation and Skills,Intellectual Property Office,31/10/2014,Travel and subsistence UK,Central Support,HRG UK,240557119,98.34,Not applicable,
Department for Business Innovation and Skills,Intellectual Property Office,31/10/2014,Travel and subsistence UK,International Policy Directorate,HRG UK,240737579,98.34,Not applicable,
Department for Business Innovation and Skills,Intellectual Property Office,31/10/2014,Travel and subsistence UK,Copyright and IP Enforcement Directorate,HRG UK,240855715,98.34,Not applicable,
Department for Business Innovation and Skills,Intellectual Property Office,31/10/2014,Travel and subsistence UK,Patents Directorate,HRG UK,240796960,98.42,Not applicable,
Department for Business Innovation and Skills,Intellectual Property Office,23/10/2014,Travel and subsistence UK,Innovation Directorate,Leasedrive Velo Rental Management Ltd,RHI01246753,98.57,Not applicable,
Department for Business Innovation and Skills,Intellectual Property Office,24/10/2014,Travel and subsistence UK,Innovation Directorate,Leasedrive Velo Rental Management Ltd,RHI01256645,98.57,Not applicable,
Department for Business Innovation and Skills,Intellectual Property Office,08/10/2014,Travel and subsistence UK,"People, Property and Services Directorate",Leasedrive Velo Rental Management Ltd,RHI01246755,98.62,Not applicable,
Department for Business Innovation and Skills,Intellectual Property Office,31/10/2014,Travel and subsistence UK,Finance Directorate,HRG UK,240818175,98.82,Not applicable,
Department for Business Innovation and Skills,Intellectual Property Office,13/10/2014,Travel and subsistence UK,Innovation Directorate,Personal expenses name witheld,ER124617,98.90,Not applicable,
Department for Business Innovation and Skills,Intellectual Property Office,31/10/2014,Travel and subsistence UK,Innovation Directorate,HRG UK,240557774,98.92,Not applicable,
Department for Business Innovation and Skills,Intellectual Property Office,31/10/2014,Travel and subsistence UK,Business Support Directorate,HRG UK,240689820,98.92,Not applicable,
Department for Business Innovation and Skills,Intellectual Property Office,31/10/2014,Travel and subsistence UK,Patents Directorate,HRG UK,240673768,99.23,Not applicable,
Department for Business Innovation and Skills,Intellectual Property Office,31/10/2014,Travel and subsistence UK,Patents Directorate,HRG UK,240818167,99.23,Not applicable,
Department for Business Innovation and Skills,Intellectual Property Office,31/10/2014,Travel and subsistence UK,Patents Directorate,HRG UK,240634943,99.23,Not applicable,
Department for Business Innovation and Skills,Intellectual Property Office,28/10/2014,Travel and subsistence UK,Patents Directorate,Leasedrive Velo Rental Management Ltd,RHI01250108,99.37,Not applicable,
Department for Business Innovation and Skills,Intellectual Property Office,31/10/2014,Travel and subsistence UK,Copyright and IP Enforcement Directorate,HRG UK,240788646,99.83,Not applicable,
Department for Business Innovation and Skills,Intellectual Property Office,31/10/2014,Travel and subsistence UK,Patents Directorate,HRG UK,240867299,99.83,Not applicable,
Department for Business Innovation and Skills,Intellectual Property Office,31/10/2014,Travel and subsistence UK,Trade Marks Directorate,HRG UK,240765555,99.83,Not applicable,
Department for Business Innovation and Skills,Intellectual Property Office,10/10/2014,Travel and subsistence UK,Patents Directorate,JK ExecutiveTravel,252,100.00,Not applicable,
Department for Business Innovation and Skills,Intellectual Property Office,31/10/2014,Travel and subsistence UK,Innovation Directorate,HRG UK,240818177,100.33,Not applicable,
Department for Business Innovation and Skills,Intellectual Property Office,31/10/2014,Travel and subsistence UK,Innovation Directorate,HRG UK,240837291,100.33,Not applicable,
Department for Business Innovation and Skills,Intellectual Property Office,31/10/2014,Travel and subsistence UK,Innovation Directorate,HRG UK,240745164,101.22,Not applicable,
Department for Business Innovation and Skills,Intellectual Property Office,31/10/2014,Travel and subsistence UK,Copyright and IP Enforcement Directorate,HRG UK,240547991,101.22,Not applicable,
Department for Business Innovation and Skills,Intellectual Property Office,31/10/2014,Travel and subsistence UK,Business Support Directorate,HRG UK,240689821,101.22,Not applicable,
Department for Business Innovation and Skills,Intellectual Property Office,10/10/2014,Travel and subsistence UK,Innovation Directorate,Personal expenses name witheld,ER124541,101.35,Not applicable,
Department for Business Innovation and Skills,Intellectual Property Office,31/10/2014,Travel and subsistence UK,"People, Property and Services Directorate",HRG UK,240756423,101.92,Not applicable,
Department for Business Innovation and Skills,Intellectual Property Office,31/10/2014,Travel and subsistence UK,Business Support Directorate,HRG UK,240818164,101.92,Not applicable,
Department for Business Innovation and Skills,Intellectual Property Office,31/10/2014,Travel and subsistence UK,Copyright and IP Enforcement Directorate,HRG UK,240837293,101.92,Not applicable,
Department for Business Innovation and Skills,Intellectual Property Office,31/10/2014,Travel and subsistence UK,Copyright and IP Enforcement Directorate,HRG UK,240559362,101.92,Not applicable,
Department for Business Innovation and Skills,Intellectual Property Office,31/10/2014,Travel and subsistence UK,International Policy Directorate,HRG UK,240749854,101.92,Not applicable,
Department for Business Innovation and Skills,Intellectual Property Office,31/10/2014,Travel and subsistence UK,Trade Marks Directorate,HRG UK,240845405,102.81,Not applicable,
Department for Business Innovation and Skills,Intellectual Property Office,31/10/2014,Travel and subsistence UK,Copyright and IP Enforcement Directorate,HRG UK,240818183,103.32,Not applicable,
Department for Business Innovation and Skills,Intellectual Property Office,31/10/2014,Travel and subsistence UK,Copyright and IP Enforcement Directorate,HRG UK,240757328,103.32,Not applicable,
Department for Business Innovation and Skills,Intellectual Property Office,31/10/2014,Travel and subsistence UK,Innovation Directorate,HRG UK,240616741,103.91,Not applicable,
Department for Business Innovation and Skills,Intellectual Property Office,31/10/2014,Travel and subsistence UK,Business Support Directorate,HRG UK,240689181,104.22,Not applicable,
Department for Business Innovation and Skills,Intellectual Property Office,31/10/2014,Travel and subsistence UK,International Policy Directorate,HRG UK,240818185,104.22,Not applicable,
Department for Business Innovation and Skills,Intellectual Property Office,31/10/2014,Travel and subsistence UK,Trade Marks Directorate,HRG UK,240607120,104.22,Not applicable,
Department for Business Innovation and Skills,Intellectual Property Office,31/10/2014,Travel and subsistence UK,Innovation Directorate,HRG UK,240837297,104.22,Not applicable,
Department for Business Innovation and Skills,Intellectual Property Office,31/10/2014,Travel and subsistence UK,Copyright and IP Enforcement Directorate,HRG UK,240852959,104.22,Not applicable,
Department for Business Innovation and Skills,Intellectual Property Office,31/10/2014,Travel and subsistence UK,"People, Property and Services Directorate",HRG UK,240733917,104.22,Not applicable,
Department for Business Innovation and Skills,Intellectual Property Office,31/10/2014,Travel and subsistence UK,"People, Property and Services Directorate",HRG UK,240829336,104.22,Not applicable,
Department for Business Innovation and Skills,Intellectual Property Office,31/10/2014,Travel and subsistence UK,Patents Directorate,HRG UK,240642875,104.22,Not applicable,
Department for Business Innovation and Skills,Intellectual Property Office,31/10/2014,Travel and subsistence UK,Trade Marks Directorate,HRG UK,240607118,104.22,Not applicable,
Department for Business Innovation and Skills,Intellectual Property Office,31/10/2014,Travel and subsistence UK,Trade Marks Directorate,HRG UK,240749852,104.22,Not applicable,
Department for Business Innovation and Skills,Intellectual Property Office,31/10/2014,Travel and subsistence UK,Business Support Directorate,HRG UK,240688989,104.22,Not applicable,
Department for Business Innovation and Skills,Intellectual Property Office,31/10/2014,Travel and subsistence UK,International Policy Directorate,HRG UK,240871146,104.22,Not applicable,
Department for Business Innovation and Skills,Intellectual Property Office,31/10/2014,Travel and subsistence UK,Business Support Directorate,HRG UK,240818165,104.22,Not applicable,
Department for Business Innovation and Skills,Intellectual Property Office,31/10/2014,Travel and subsistence UK,International Policy Directorate,HRG UK,240749855,104.22,Not applicable,
Department for Business Innovation and Skills,Intellectual Property Office,31/10/2014,Travel and subsistence UK,Patents Directorate,HRG UK,240861243,104.22,Not applicable,
Department for Business Innovation and Skills,Intellectual Property Office,31/10/2014,Travel and subsistence UK,"People, Property and Services Directorate",HRG UK,240829334,104.22,Not applicable,
Department for Business Innovation and Skills,Intellectual Property Office,31/10/2014,Travel and subsistence UK,Trade Marks Directorate,HRG UK,240607116,104.22,Not applicable,
Department for Business Innovation and Skills,Intellectual Property Office,31/10/2014,Travel and subsistence UK,Patents Directorate,HRG UK,240642872,104.22,Not applicable,
Department for Business Innovation and Skills,Intellectual Property Office,31/10/2014,Travel and subsistence UK,Innovation Directorate,HRG UK,240837296,106.01,Not applicable,
Department for Business Innovation and Skills,Intellectual Property Office,31/10/2014,Travel and subsistence UK,Copyright and IP Enforcement Directorate,HRG UK,240818160,106.01,Not applicable,
Department for Business Innovation and Skills,Intellectual Property Office,31/10/2014,Travel and subsistence UK,Innovation Directorate,HRG UK,240585336,106.22,Not applicable,
Department for Business Innovation and Skills,Intellectual Property Office,31/10/2014,Travel and subsistence UK,Copyright and IP Enforcement Directorate,HRG UK,240548050,106.22,Not applicable,
Department for Business Innovation and Skills,Intellectual Property Office,31/10/2014,Travel and subsistence UK,Innovation Directorate,HRG UK,240668702,106.22,Not applicable,
Department for Business Innovation and Skills,Intellectual Property Office,31/10/2014,Travel and subsistence UK,Finance Directorate,HRG UK,240561055,106.22,Not applicable,
Department for Business Innovation and Skills,Intellectual Property Office,31/10/2014,Travel and subsistence UK,Innovation Directorate,HRG UK,240759193,106.90,Not applicable,
Department for Business Innovation and Skills,Intellectual Property Office,31/10/2014,Travel and subsistence UK,Patents Directorate,HRG UK,240850521,106.90,Not applicable,
Department for Business Innovation and Skills,Intellectual Property Office,31/10/2014,Travel and subsistence UK,Copyright and IP Enforcement Directorate,HRG UK,240618354,107.81,Not applicable,
Department for Business Innovation and Skills,Intellectual Property Office,31/10/2014,Travel and subsistence UK,Trade Marks Directorate,HRG UK,240679339,107.81,Not applicable,
Department for Business Innovation and Skills,Intellectual Property Office,31/10/2014,Travel and subsistence UK,Patents Directorate,HRG UK,240784315,107.81,Not applicable,
Department for Business Innovation and Skills,Intellectual Property Office,31/10/2014,Travel and subsistence UK,Patents Directorate,HRG UK,240745167,107.81,Not applicable,
Department for Business Innovation and Skills,Intellectual Property Office,31/10/2014,Travel and subsistence UK,Trade Marks Directorate,HRG UK,240679336,107.81,Not applicable,
Department for Business Innovation and Skills,Intellectual Property Office,31/10/2014,Travel and subsistence UK,Patents Directorate,HRG UK,240667831,108.30,Not applicable,
Department for Business Innovation and Skills,Intellectual Property Office,31/10/2014,Travel and subsistence UK,International Policy Directorate,HRG UK,240585334,109.20,Not applicable,
Department for Business Innovation and Skills,Intellectual Property Office,31/10/2014,Travel and subsistence UK,Copyright and IP Enforcement Directorate,HRG UK,240818181,109.20,Not applicable,
Department for Business Innovation and Skills,Intellectual Property Office,31/10/2014,Travel and subsistence UK,Innovation Directorate,HRG UK,240837299,109.20,Not applicable,
Department for Business Innovation and Skills,Intellectual Property Office,28/10/2014,Travel and subsistence UK,Innovation Directorate,Leasedrive Velo Rental Management Ltd,RHI01256650,109.54,Not applicable,
Department for Business Innovation and Skills,Intellectual Property Office,31/10/2014,Travel and subsistence UK,Innovation Directorate,HRG UK,240585340,109.80,Not applicable,
Department for Business Innovation and Skills,Intellectual Property Office,31/10/2014,Travel and subsistence UK,Innovation Directorate,HRG UK,240585342,109.80,Not applicable,
Department for Business Innovation and Skills,Intellectual Property Office,31/10/2014,Travel and subsistence UK,Innovation Directorate,HRG UK,240673174,109.80,Not applicable,
Department for Business Innovation and Skills,Intellectual Property Office,31/10/2014,Travel and subsistence UK,Innovation Directorate,HRG UK,240837298,110.99,Not applicable,
Department for Business Innovation and Skills,Intellectual Property Office,09/10/2014,Travel and subsistence UK,Innovation Directorate,Personal expenses name witheld,ER124433,112.15,Not applicable,
Department for Business Innovation and Skills,Intellectual Property Office,13/10/2014,Travel and subsistence UK,Copyright and IP Enforcement Directorate,Personal expenses name witheld,ER122519,112.35,Not applicable,
Department for Business Innovation and Skills,Intellectual Property Office,28/10/2014,Travel and subsistence UK,Innovation Directorate,Personal expenses name witheld,ER125597,115.15,Not applicable,
Department for Business Innovation and Skills,Intellectual Property Office,31/10/2014,Travel and subsistence UK,Business Support Directorate,HRG UK,240618590,115.18,Not applicable,
Department for Business Innovation and Skills,Intellectual Property Office,31/10/2014,Travel and subsistence UK,Business Support Directorate,HRG UK,240733566,115.18,Not applicable,
Department for Business Innovation and Skills,Intellectual Property Office,31/10/2014,Travel and subsistence UK,Patents Directorate,HRG UK,240667830,115.28,Not applicable,
Department for Business Innovation and Skills,Intellectual Property Office,07/10/2014,Travel and subsistence UK,Copyright and IP Enforcement Directorate,Personal expenses name witheld,ER123960,116.05,Not applicable,
Department for Business Innovation and Skills,Intellectual Property Office,14/10/2014,Travel and subsistence UK,Innovation Directorate,Leasedrive Velo Rental Management Ltd,RHI01242279,116.59,Not applicable,
Department for Business Innovation and Skills,Intellectual Property Office,03/10/2014,Travel and subsistence UK,Innovation Directorate,Leasedrive Velo Rental Management Ltd,RHI01242280,116.59,Not applicable,
Department for Business Innovation and Skills,Intellectual Property Office,31/10/2014,Travel and subsistence UK,Business Support Directorate,HRG UK,240716203,118.77,Not applicable,
Department for Business Innovation and Skills,Intellectual Property Office,31/10/2014,Travel and subsistence UK,Business Support Directorate,HRG UK,240818179,118.77,Not applicable,
Department for Business Innovation and Skills,Intellectual Property Office,31/10/2014,Travel and subsistence UK,Business Support Directorate,HRG UK,240768889,118.77,Not applicable,
Department for Business Innovation and Skills,Intellectual Property Office,24/10/2014,Travel and subsistence UK,Trade Marks Directorate,Personal expenses name witheld,ER125357,118.90,Not applicable,
Department for Business Innovation and Skills,Intellectual Property Office,29/10/2014,Travel and subsistence UK,Business Support Directorate,Personal expenses name witheld,ER124514,120.00,Not applicable,
Department for Business Innovation and Skills,Intellectual Property Office,31/10/2014,Travel and subsistence UK,International Policy Directorate,HRG UK,240733918,120.37,Not applicable,
Department for Business Innovation and Skills,Intellectual Property Office,16/10/2014,Travel and subsistence UK,International Policy Directorate,Personal expenses name witheld,ER125013,124.90,Not applicable,
Department for Business Innovation and Skills,Intellectual Property Office,09/10/2014,Travel and subsistence UK,Patents Directorate,Personal expenses name witheld,ER124133,125.85,Not applicable,
Department for Business Innovation and Skills,Intellectual Property Office,22/10/2014,Travel and subsistence UK,Trade Marks Directorate,Cronin AM,AMCRONIN-02SEP14,127.03,Not applicable,
Department for Business Innovation and Skills,Intellectual Property Office,28/10/2014,Travel and subsistence UK,Trade Marks Directorate,Personal expenses name witheld,ER125094,129.00,Not applicable,
Department for Business Innovation and Skills,Intellectual Property Office,14/10/2014,Travel and subsistence UK,Innovation Directorate,Leasedrive Velo Rental Management Ltd,RHI01246754,131.42,Not applicable,
Department for Business Innovation and Skills,Intellectual Property Office,31/10/2014,Travel and subsistence UK,Patents Directorate,HRG UK,240559555,133.97,Not applicable,
Department for Business Innovation and Skills,Intellectual Property Office,31/10/2014,Travel and subsistence UK,Patents Directorate,HRG UK,240559338,133.97,Not applicable,
Department for Business Innovation and Skills,Intellectual Property Office,15/10/2014,Travel and subsistence UK,Trade Marks Directorate,Personal expenses name witheld,ER124875,134.65,Not applicable,
Department for Business Innovation and Skills,Intellectual Property Office,16/10/2014,Travel and subsistence UK,Trade Marks Directorate,Personal expenses name witheld,ER124937,134.90,Not applicable,
Department for Business Innovation and Skills,Intellectual Property Office,06/10/2014,Travel and subsistence UK,Patents Directorate,Personal expenses name witheld,ER124095,135.85,Not applicable,
Department for Business Innovation and Skills,Intellectual Property Office,13/10/2014,Travel and subsistence UK,Copyright and IP Enforcement Directorate,Personal expenses name witheld,ER124435,136.17,Not applicable,
Department for Business Innovation and Skills,Intellectual Property Office,27/10/2014,Travel and subsistence UK,Innovation Directorate,Leasedrive Velo Rental Management Ltd,RHI01233089,136.92,Not applicable,
Department for Business Innovation and Skills,Intellectual Property Office,31/10/2014,Travel and subsistence UK,Patents Directorate,HRG UK,240642336,138.32,Not applicable,
Department for Business Innovation and Skills,Intellectual Property Office,31/10/2014,Travel and subsistence UK,International Policy Directorate,HRG UK,240642331,138.32,Not applicable,
Department for Business Innovation and Skills,Intellectual Property Office,16/10/2014,Travel and subsistence UK,Trade Marks Directorate,Personal expenses name witheld,ER124953,141.65,Not applicable,
Department for Business Innovation and Skills,Intellectual Property Office,17/10/2014,Travel and subsistence UK,Patents Directorate,Personal expenses name witheld,ER125110,142.15,Not applicable,
Department for Business Innovation and Skills,Intellectual Property Office,22/10/2014,Travel and subsistence UK,Innovation Directorate,Leasedrive Velo Rental Management Ltd,RHI01252649,145.74,Not applicable,
Department for Business Innovation and Skills,Intellectual Property Office,10/10/2014,Travel and subsistence UK,Innovation Directorate,Leasedrive Velo Rental Management Ltd,RHI01248625,145.74,Not applicable,
Department for Business Innovation and Skills,Intellectual Property Office,31/10/2014,Travel and subsistence UK,Trade Marks Directorate,HRG UK,240818172,145.80,Not applicable,
Department for Business Innovation and Skills,Intellectual Property Office,23/10/2014,Travel and subsistence UK,Trade Marks Directorate,Personal expenses name witheld,ER125298,148.45,Not applicable,
Department for Business Innovation and Skills,Intellectual Property Office,16/10/2014,Travel and subsistence UK,International Policy Directorate,Personal expenses name witheld,ER124493,150.35,Not applicable,
Department for Business Innovation and Skills,Intellectual Property Office,16/10/2014,Travel and subsistence UK,International Policy Directorate,Veezu Ltd T/A Dragon Taxis (Newport),2378,153.00,Not applicable,
Department for Business Innovation and Skills,Intellectual Property Office,31/10/2014,Travel and subsistence UK,Trade Marks Directorate,HRG UK,240818171,154.28,Not applicable,
Department for Business Innovation and Skills,Intellectual Property Office,15/10/2014,Travel and subsistence UK,"People, Property and Services Directorate",Personal expenses name witheld,ER124934,154.70,Not applicable,
Department for Business Innovation and Skills,Intellectual Property Office,23/10/2014,Travel and subsistence UK,Innovation Directorate,Leasedrive Velo Rental Management Ltd,RHI01258183,156.25,Not applicable,
Department for Business Innovation and Skills,Intellectual Property Office,31/10/2014,Travel and subsistence UK,Innovation Directorate,HRG UK,240883837,160.17,Not applicable,
Department for Business Innovation and Skills,Intellectual Property Office,31/10/2014,Travel and subsistence UK,Innovation Directorate,Leasedrive Velo Rental Management Ltd,RHI01261534,160.28,Not applicable,
Department for Business Innovation and Skills,Intellectual Property Office,13/10/2014,Travel and subsistence UK,Copyright and IP Enforcement Directorate,Personal expenses name witheld,ER122823,165.30,Not applicable,
Department for Business Innovation and Skills,Intellectual Property Office,28/10/2014,Travel and subsistence UK,Copyright and IP Enforcement Directorate,Personal expenses name witheld,ER125561,166.20,Not applicable,
Department for Business Innovation and Skills,Intellectual Property Office,28/10/2014,Travel and subsistence UK,Copyright and IP Enforcement Directorate,Personal expenses name witheld,ER125566,166.20,Not applicable,
Department for Business Innovation and Skills,Intellectual Property Office,31/10/2014,Travel and subsistence UK,Trade Marks Directorate,HRG UK,240679764,166.64,Not applicable,
Department for Business Innovation and Skills,Intellectual Property Office,31/10/2014,Travel and subsistence UK,Trade Marks Directorate,HRG UK,240681520,166.64,Not applicable,
Department for Business Innovation and Skills,Intellectual Property Office,31/10/2014,Travel and subsistence UK,Business Support Directorate,HRG UK,240568645,166.64,Not applicable,
Department for Business Innovation and Skills,Intellectual Property Office,31/10/2014,Travel and subsistence UK,Trade Marks Directorate,HRG UK,240745165,168.44,Not applicable,
Department for Business Innovation and Skills,Intellectual Property Office,23/10/2014,Travel and subsistence UK,Business Support Directorate,Personal expenses name witheld,ER124933,170.40,Not applicable,
Department for Business Innovation and Skills,Intellectual Property Office,23/10/2014,Travel and subsistence UK,Copyright and IP Enforcement Directorate,Leasedrive Velo Rental Management Ltd,RHI01256647,171.96,Not applicable,
Department for Business Innovation and Skills,Intellectual Property Office,20/10/2014,Travel and subsistence UK,Trade Marks Directorate,Personal expenses name witheld,ER124950,173.00,Not applicable,
Department for Business Innovation and Skills,Intellectual Property Office,08/10/2014,Travel and subsistence UK,Innovation Directorate,Leasedrive Velo Rental Management Ltd,RHI01242281,174.89,Not applicable,
Department for Business Innovation and Skills,Intellectual Property Office,16/10/2014,Travel and subsistence UK,Trade Marks Directorate,Personal expenses name witheld,ER124913,177.50,Not applicable,
Department for Business Innovation and Skills,Intellectual Property Office,07/10/2014,Travel and subsistence UK,Copyright and IP Enforcement Directorate,Personal expenses name witheld,ER124214,188.70,Not applicable,
Department for Business Innovation and Skills,Intellectual Property Office,23/10/2014,Travel and subsistence UK,Business Support Directorate,Leasedrive Velo Rental Management Ltd,RHI01258182,191.69,Not applicable,
Department for Business Innovation and Skills,Intellectual Property Office,13/10/2014,Travel and subsistence UK,Trade Marks Directorate,Personal expenses name witheld,ER124576,193.44,Not applicable,
Department for Business Innovation and Skills,Intellectual Property Office,14/10/2014,Travel and subsistence UK,Innovation Directorate,Personal expenses name witheld,ER124295,194.00,Not applicable,
Department for Business Innovation and Skills,Intellectual Property Office,31/10/2014,Travel and subsistence UK,Patents Directorate,HRG UK,240759195,196.06,Not applicable,
Department for Business Innovation and Skills,Intellectual Property Office,31/10/2014,Travel and subsistence UK,Innovation Directorate,Leasedrive Velo Rental Management Ltd,RHI01263181,197.14,Not applicable,
Department for Business Innovation and Skills,Intellectual Property Office,03/10/2014,Travel and subsistence UK,Innovation Directorate,Personal expenses name witheld,ER124073,200.87,Not applicable,
Department for Business Innovation and Skills,Intellectual Property Office,29/10/2014,Travel and subsistence UK,International Policy Directorate,Personal expenses name witheld,ER125637,202.20,Not applicable,
Department for Business Innovation and Skills,Intellectual Property Office,31/10/2014,Travel and subsistence UK,Patents Directorate,HRG UK,240607109,202.54,Not applicable,
Department for Business Innovation and Skills,Intellectual Property Office,31/10/2014,Travel and subsistence UK,Patents Directorate,HRG UK,240840504,202.54,Not applicable,
Department for Business Innovation and Skills,Intellectual Property Office,31/10/2014,Travel and subsistence UK,Patents Directorate,HRG UK,240623710,202.54,Not applicable,
Department for Business Innovation and Skills,Intellectual Property Office,31/10/2014,Travel and subsistence UK,Business Support Directorate,HRG UK,240737567,206.04,Not applicable,
Department for Business Innovation and Skills,Intellectual Property Office,31/10/2014,Travel and subsistence UK,Business Support Directorate,HRG UK,240761934,206.04,Not applicable,
Department for Business Innovation and Skills,Intellectual Property Office,31/10/2014,Travel and subsistence UK,Business Support Directorate,HRG UK,240611635,206.04,Not applicable,
Department for Business Innovation and Skills,Intellectual Property Office,31/10/2014,Travel and subsistence UK,Business Support Directorate,HRG UK,240779067,206.04,Not applicable,
Department for Business Innovation and Skills,Intellectual Property Office,31/10/2014,Travel and subsistence UK,Innovation Directorate,HRG UK,240877366,206.04,Not applicable,
Department for Business Innovation and Skills,Intellectual Property Office,31/10/2014,Travel and subsistence UK,International Policy Directorate,HRG UK,240547690,206.04,Not applicable,
Department for Business Innovation and Skills,Intellectual Property Office,31/10/2014,Travel and subsistence UK,"People, Property and Services Directorate",HRG UK,240761933,206.04,Not applicable,
Department for Business Innovation and Skills,Intellectual Property Office,15/10/2014,Travel and subsistence UK,"People, Property and Services Directorate",Personal expenses name witheld,ER123065,206.55,Not applicable,
Department for Business Innovation and Skills,Intellectual Property Office,29/10/2014,Travel and subsistence UK,Innovation Directorate,Personal expenses name witheld,ER125542,208.30,Not applicable,
Department for Business Innovation and Skills,Intellectual Property Office,31/10/2014,Travel and subsistence UK,Innovation Directorate,HRG UK,240652984,210.13,Not applicable,
Department for Business Innovation and Skills,Intellectual Property Office,31/10/2014,Travel and subsistence UK,International Policy Directorate,HRG UK,240622475,212.01,Not applicable,
Department for Business Innovation and Skills,Intellectual Property Office,31/10/2014,Travel and subsistence UK,IMPROVE Project,HRG UK,240867302,212.01,Not applicable,
Department for Business Innovation and Skills,Intellectual Property Office,31/10/2014,Travel and subsistence UK,International Policy Directorate,HRG UK,240867300,212.01,Not applicable,
Department for Business Innovation and Skills,Intellectual Property Office,31/10/2014,Travel and subsistence UK,"People, Property and Services Directorate",HRG UK,240714478,212.01,Not applicable,
Department for Business Innovation and Skills,Intellectual Property Office,31/10/2014,Travel and subsistence UK,Patents Directorate,HRG UK,240818174,212.01,Not applicable,
Department for Business Innovation and Skills,Intellectual Property Office,31/10/2014,Travel and subsistence UK,Business Support Directorate,HRG UK,240585325,212.01,Not applicable,
Department for Business Innovation and Skills,Intellectual Property Office,31/10/2014,Travel and subsistence UK,Trade Marks Directorate,HRG UK,240688372,212.01,Not applicable,
Department for Business Innovation and Skills,Intellectual Property Office,31/10/2014,Travel and subsistence UK,International Policy Directorate,HRG UK,240667829,212.01,Not applicable,
Department for Business Innovation and Skills,Intellectual Property Office,31/10/2014,Travel and subsistence UK,Business Support Directorate,HRG UK,240858473,212.01,Not applicable,
Department for Business Innovation and Skills,Intellectual Property Office,31/10/2014,Travel and subsistence UK,International Policy Directorate,HRG UK,240749850,212.01,Not applicable,
Department for Business Innovation and Skills,Intellectual Property Office,31/10/2014,Travel and subsistence UK,IMPROVE Project,HRG UK,240867304,212.01,Not applicable,
Department for Business Innovation and Skills,Intellectual Property Office,31/10/2014,Travel and subsistence UK,Patents Directorate,HRG UK,240585326,212.01,Not applicable,
Department for Business Innovation and Skills,Intellectual Property Office,31/10/2014,Travel and subsistence UK,Trade Marks Directorate,HRG UK,240683940,212.01,Not applicable,
Department for Business Innovation and Skills,Intellectual Property Office,31/10/2014,Travel and subsistence UK,"People, Property and Services Directorate",HRG UK,240818178,212.01,Not applicable,
Department for Business Innovation and Skills,Intellectual Property Office,31/10/2014,Travel and subsistence UK,"People, Property and Services Directorate",HRG UK,240621416,212.01,Not applicable,
Department for Business Innovation and Skills,Intellectual Property Office,31/10/2014,Travel and subsistence UK,Trade Marks Directorate,HRG UK,240678554,212.01,Not applicable,
Department for Business Innovation and Skills,Intellectual Property Office,31/10/2014,Travel and subsistence UK,Finance Directorate,HRG UK,240761936,212.01,Not applicable,
Department for Business Innovation and Skills,Intellectual Property Office,31/10/2014,Travel and subsistence UK,Trade Marks Directorate,HRG UK,240688142,212.01,Not applicable,
Department for Business Innovation and Skills,Intellectual Property Office,31/10/2014,Travel and subsistence UK,"People, Property and Services Directorate",HRG UK,240858723,212.01,Not applicable,
Department for Business Innovation and Skills,Intellectual Property Office,31/10/2014,Travel and subsistence UK,Trade Marks Directorate,HRG UK,240657113,212.01,Not applicable,
Department for Business Innovation and Skills,Intellectual Property Office,31/10/2014,Travel and subsistence UK,Trade Marks Directorate,HRG UK,240655628,212.01,Not applicable,
Department for Business Innovation and Skills,Intellectual Property Office,31/10/2014,Travel and subsistence UK,International Policy Directorate,HRG UK,240855952,212.01,Not applicable,
Department for Business Innovation and Skills,Intellectual Property Office,31/10/2014,Travel and subsistence UK,Business Support Directorate,HRG UK,240859149,212.01,Not applicable,
Department for Business Innovation and Skills,Intellectual Property Office,31/10/2014,Travel and subsistence UK,Trade Marks Directorate,HRG UK,240784215,212.01,Not applicable,
Department for Business Innovation and Skills,Intellectual Property Office,31/10/2014,Travel and subsistence UK,Finance Directorate,HRG UK,240761935,212.01,Not applicable,
Department for Business Innovation and Skills,Intellectual Property Office,31/10/2014,Travel and subsistence UK,Patents Directorate,HRG UK,240755196,212.01,Not applicable,
Department for Business Innovation and Skills,Intellectual Property Office,31/10/2014,Travel and subsistence UK,Patents Directorate,HRG UK,240585327,212.01,Not applicable,
Department for Business Innovation and Skills,Intellectual Property Office,31/10/2014,Travel and subsistence UK,International Policy Directorate,HRG UK,240585339,212.01,Not applicable,
Department for Business Innovation and Skills,Intellectual Property Office,31/10/2014,Travel and subsistence UK,Patents Directorate,HRG UK,240859151,212.52,Not applicable,
Department for Business Innovation and Skills,Intellectual Property Office,31/10/2014,Travel and subsistence UK,Patents Directorate,HRG UK,240858245,212.52,Not applicable,
Department for Business Innovation and Skills,Intellectual Property Office,31/10/2014,Travel and subsistence UK,Innovation Directorate,HRG UK,240714484,212.52,Not applicable,
Department for Business Innovation and Skills,Intellectual Property Office,31/10/2014,Travel and subsistence UK,Patents Directorate,HRG UK,240860961,212.52,Not applicable,
Department for Business Innovation and Skills,Intellectual Property Office,31/10/2014,Travel and subsistence UK,Patents Directorate,HRG UK,240859147,212.52,Not applicable,
Department for Business Innovation and Skills,Intellectual Property Office,17/10/2014,Travel and subsistence UK,Innovation Directorate,Personal expenses name witheld,ER125103,213.45,Not applicable,
Department for Business Innovation and Skills,Intellectual Property Office,31/10/2014,Travel and subsistence UK,Business Support Directorate,HRG UK,240871147,213.62,Not applicable,
Department for Business Innovation and Skills,Intellectual Property Office,31/10/2014,Travel and subsistence UK,"People, Property and Services Directorate",HRG UK,240642873,216.01,Not applicable,
Department for Business Innovation and Skills,Intellectual Property Office,31/10/2014,Travel and subsistence UK,International Policy Directorate,HRG UK,240541503,216.01,Not applicable,
Department for Business Innovation and Skills,Intellectual Property Office,31/10/2014,Travel and subsistence UK,Innovation Directorate,HRG UK,240837292,216.01,Not applicable,
Department for Business Innovation and Skills,Intellectual Property Office,31/10/2014,Travel and subsistence UK,Innovation Directorate,HRG UK,240652982,216.61,Not applicable,
Department for Business Innovation and Skills,Intellectual Property Office,31/10/2014,Travel and subsistence UK,Innovation Directorate,HRG UK,240652983,220.11,Not applicable,
Department for Business Innovation and Skills,Intellectual Property Office,31/10/2014,Travel and subsistence UK,Patents Directorate,HRG UK,240575641,221.99,Not applicable,
Department for Business Innovation and Skills,Intellectual Property Office,31/10/2014,Travel and subsistence UK,Copyright and IP Enforcement Directorate,HRG UK,240617206,221.99,Not applicable,
Department for Business Innovation and Skills,Intellectual Property Office,31/10/2014,Travel and subsistence UK,IMPROVE Project,HRG UK,240733264,221.99,Not applicable,
Department for Business Innovation and Skills,Intellectual Property Office,31/10/2014,Travel and subsistence UK,"People, Property and Services Directorate",HRG UK,240837304,221.99,Not applicable,
Department for Business Innovation and Skills,Intellectual Property Office,31/10/2014,Travel and subsistence UK,Patents Directorate,HRG UK,240737573,221.99,Not applicable,
Department for Business Innovation and Skills,Intellectual Property Office,31/10/2014,Travel and subsistence UK,International Policy Directorate,HRG UK,240734694,221.99,Not applicable,
Department for Business Innovation and Skills,Intellectual Property Office,31/10/2014,Travel and subsistence UK,Innovation Directorate,HRG UK,240616888,221.99,Not applicable,
Department for Business Innovation and Skills,Intellectual Property Office,31/10/2014,Travel and subsistence UK,Copyright and IP Enforcement Directorate,HRG UK,240617064,221.99,Not applicable,
Department for Business Innovation and Skills,Intellectual Property Office,31/10/2014,Travel and subsistence UK,International Policy Directorate,HRG UK,240871144,221.99,Not applicable,
Department for Business Innovation and Skills,Intellectual Property Office,31/10/2014,Travel and subsistence UK,"People, Property and Services Directorate",HRG UK,240714481,221.99,Not applicable,
Department for Business Innovation and Skills,Intellectual Property Office,31/10/2014,Travel and subsistence UK,Copyright and IP Enforcement Directorate,HRG UK,240561056,221.99,Not applicable,
Department for Business Innovation and Skills,Intellectual Property Office,31/10/2014,Travel and subsistence UK,International Policy Directorate,HRG UK,240621066,221.99,Not applicable,
Department for Business Innovation and Skills,Intellectual Property Office,23/10/2014,Travel and subsistence UK,International Policy Directorate,Personal expenses name witheld,ER124653,224.30,Not applicable,
Department for Business Innovation and Skills,Intellectual Property Office,31/10/2014,Travel and subsistence UK,Finance Directorate,HRG UK,240568643,226.08,Not applicable,
Department for Business Innovation and Skills,Intellectual Property Office,13/10/2014,Travel and subsistence UK,Patents Directorate,Personal expenses name witheld,ER124679,228.60,Not applicable,
Department for Business Innovation and Skills,Intellectual Property Office,16/10/2014,Travel and subsistence UK,Patents Directorate,Personal expenses name witheld,ER124948,228.80,Not applicable,
Department for Business Innovation and Skills,Intellectual Property Office,20/10/2014,Travel and subsistence UK,Innovation Directorate,Personal expenses name witheld,ER125153,233.39,Not applicable,
Department for Business Innovation and Skills,Intellectual Property Office,31/10/2014,Travel and subsistence UK,Business Support Directorate,HRG UK,240634941,233.95,Not applicable,
Department for Business Innovation and Skills,Intellectual Property Office,31/10/2014,Travel and subsistence UK,Business Support Directorate,HRG UK,240737587,233.95,Not applicable,
Department for Business Innovation and Skills,Intellectual Property Office,31/10/2014,Travel and subsistence UK,Business Support Directorate,HRG UK,240556216,233.95,Not applicable,
Department for Business Innovation and Skills,Intellectual Property Office,31/10/2014,Travel and subsistence UK,Business Support Directorate,HRG UK,240631275,233.95,Not applicable,
Department for Business Innovation and Skills,Intellectual Property Office,31/10/2014,Travel and subsistence UK,Business Support Directorate,HRG UK,240556079,233.95,Not applicable,
Department for Business Innovation and Skills,Intellectual Property Office,29/10/2014,Travel and subsistence UK,Innovation Directorate,Personal expenses name witheld,ER125578,234.00,Not applicable,
Department for Business Innovation and Skills,Intellectual Property Office,31/10/2014,Travel and subsistence UK,Patents Directorate,HRG UK,240749849,234.96,Not applicable,
Department for Business Innovation and Skills,Intellectual Property Office,31/10/2014,Travel and subsistence UK,Patents Directorate,HRG UK,240749848,234.96,Not applicable,
Department for Business Innovation and Skills,Intellectual Property Office,31/10/2014,Travel and subsistence UK,Patents Directorate,HRG UK,240756145,236.40,Not applicable,
Department for Business Innovation and Skills,Intellectual Property Office,16/10/2014,Travel and subsistence UK,Innovation Directorate,Personal expenses name witheld,ER124033,238.70,Not applicable,
Department for Business Innovation and Skills,Intellectual Property Office,31/10/2014,Travel and subsistence UK,Patents Directorate,HRG UK,240796959,238.95,Not applicable,
Department for Business Innovation and Skills,Intellectual Property Office,16/10/2014,Travel and subsistence UK,Innovation Directorate,Personal expenses name witheld,ER125035,240.51,Not applicable,
Department for Business Innovation and Skills,Intellectual Property Office,21/10/2014,Travel and subsistence UK,Innovation Directorate,Personal expenses name witheld,ER125294,241.60,Not applicable,
Department for Business Innovation and Skills,Intellectual Property Office,03/10/2014,Travel and subsistence UK,International Policy Directorate,Personal expenses name witheld,ER123835,245.10,Not applicable,
Department for Business Innovation and Skills,Intellectual Property Office,13/10/2014,Travel and subsistence UK,Patents Directorate,Personal expenses name witheld,ER124274,247.65,Not applicable,
Department for Business Innovation and Skills,Intellectual Property Office,17/10/2014,Travel and subsistence UK,Trade Marks Directorate,Personal expenses name witheld,ER125102,253.40,Not applicable,
Department for Business Innovation and Skills,Intellectual Property Office,13/10/2014,Travel and subsistence UK,Patents Directorate,Personal expenses name witheld,ER124616,258.85,Not applicable,
Department for Business Innovation and Skills,Intellectual Property Office,13/10/2014,Travel and subsistence UK,Copyright and IP Enforcement Directorate,Personal expenses name witheld,ER124313,262.80,Not applicable,
Department for Business Innovation and Skills,Intellectual Property Office,10/10/2014,Travel and subsistence UK,Copyright and IP Enforcement Directorate,Personal expenses name witheld,ER124556,263.10,Not applicable,
Department for Business Innovation and Skills,Intellectual Property Office,13/10/2014,Travel and subsistence UK,Copyright and IP Enforcement Directorate,Personal expenses name witheld,ER124559,269.50,Not applicable,
Department for Business Innovation and Skills,Intellectual Property Office,21/10/2014,Travel and subsistence UK,Innovation Directorate,Personal expenses name witheld,ER125214,285.99,Not applicable,
Department for Business Innovation and Skills,Intellectual Property Office,23/10/2014,Travel and subsistence UK,Patents Directorate,Personal expenses name witheld,ER125255,295.15,Not applicable,
Department for Business Innovation and Skills,Intellectual Property Office,07/10/2014,Travel and subsistence UK,Copyright and IP Enforcement Directorate,Personal expenses name witheld,ER123795,301.15,Not applicable,
Department for Business Innovation and Skills,Intellectual Property Office,14/10/2014,Travel and subsistence UK,Innovation Directorate,Personal expenses name witheld,ER124738,302.80,Not applicable,
Department for Business Innovation and Skills,Intellectual Property Office,01/10/2014,Travel and subsistence UK,Trade Marks Directorate,Gavin Terry,52542,308.49,Not applicable,
Department for Business Innovation and Skills,Intellectual Property Office,02/10/2014,Travel and subsistence UK,Innovation Directorate,Personal expenses name witheld,ER123893,316.60,Not applicable,
Department for Business Innovation and Skills,Intellectual Property Office,24/10/2014,Travel and subsistence UK,Trade Marks Directorate,Cronin AM,52582,323.70,Not applicable,
Department for Business Innovation and Skills,Intellectual Property Office,08/10/2014,Travel and subsistence UK,"People, Property and Services Directorate",Personal expenses name witheld,ER124393,340.61,Not applicable,
Department for Business Innovation and Skills,Intellectual Property Office,14/10/2014,Travel and subsistence UK,Innovation Directorate,Personal expenses name witheld,ER124754,351.30,Not applicable,
Department for Business Innovation and Skills,Intellectual Property Office,15/10/2014,Travel and subsistence UK,Innovation Directorate,Personal expenses name witheld,ER123593,368.20,Not applicable,
Department for Business Innovation and Skills,Intellectual Property Office,16/10/2014,Travel and subsistence UK,Patents Directorate,Personal expenses name witheld,ER124973,378.30,Not applicable,
Department for Business Innovation and Skills,Intellectual Property Office,13/10/2014,Travel and subsistence UK,Finance Directorate,Personal expenses name witheld,ER124618,379.48,Not applicable,
Department for Business Innovation and Skills,Intellectual Property Office,01/10/2014,Travel and subsistence UK,Trade Marks Directorate,Gavin Terry,52543,381.27,Not applicable,
Department for Business Innovation and Skills,Intellectual Property Office,28/10/2014,Travel and subsistence UK,Innovation Directorate,Personal expenses name witheld,ER125617,398.70,Not applicable,
Department for Business Innovation and Skills,Intellectual Property Office,22/10/2014,Travel and subsistence UK,Trade Marks Directorate,Cronin AM,AMCRONIN-05SEP14,489.72,Not applicable,
Department for Business Innovation and Skills,Intellectual Property Office,16/10/2014,Travel and subsistence UK,Innovation Directorate,Leasedrive Velo Rental Management Ltd,RHI01251256,502.99,Not applicable,
Department for Business Innovation and Skills,Intellectual Property Office,23/10/2014,Travel and subsistence UK,Business Support Directorate,Leasedrive Velo Rental Management Ltd,RHI01240279,508.37,Not applicable,
Department for Business Innovation and Skills,Intellectual Property Office,14/10/2014,Travel and subsistence UK,Business Support Directorate,Personal expenses name witheld,ER124715,509.50,Not applicable,
Department for Business Innovation and Skills,Intellectual Property Office,17/10/2014,Travel and subsistence UK,Patents Directorate,Personal expenses name witheld,ER124944,520.19,Not applicable,
Department for Business Innovation and Skills,Intellectual Property Office,14/10/2014,Travel and subsistence UK,Innovation Directorate,Personal expenses name witheld,ER124693,544.54,Not applicable,
Department for Business Innovation and Skills,Intellectual Property Office,13/10/2014,Travel and subsistence UK,Business Support Directorate,Personal expenses name witheld,ER124676,548.90,Not applicable,
Department for Business Innovation and Skills,Intellectual Property Office,23/10/2014,Travel and subsistence UK,Business Support Directorate,Personal expenses name witheld,ER125274,572.95,Not applicable,
Department for Business Innovation and Skills,Intellectual Property Office,23/10/2014,Travel and subsistence UK,Trade Marks Directorate,Personal expenses name witheld,ER125193,629.46,Not applicable,
Department for Business Innovation and Skills,Intellectual Property Office,28/10/2014,Travel and subsistence UK,Innovation Directorate,Personal expenses name witheld,ER125557,644.29,Not applicable,
Department for Business Innovation and Skills,Intellectual Property Office,10/10/2014,Travel and subsistence UK,Innovation Directorate,Personal expenses name witheld,ER124534,705.48,Not applicable,
Department for Business Innovation and Skills,Intellectual Property Office,14/10/2014,Travel and subsistence UK,Innovation Directorate,Personal expenses name witheld,ER124752,717.80,Not applicable,
Department for Business Innovation and Skills,Intellectual Property Office,21/10/2014,Travel and subsistence UK,Business Support Directorate,Personal expenses name witheld,ER125179,745.65,Not applicable,
Department for Business Innovation and Skills,Intellectual Property Office,24/10/2014,Travel and subsistence UK,Business Support Directorate,Personal expenses name witheld,ER125196,864.30,Not applicable,
Department for Business Innovation and Skills,Intellectual Property Office,28/10/2014,Travel and subsistence UK,Innovation Directorate,Personal expenses name witheld,ER125577,872.61,Not applicable,
Department for Business Innovation and Skills,Intellectual Property Office,07/10/2014,Travel and subsistence UK,International Policy Directorate,M Fysh  QC,52551,1173.84,Not applicable,
Department for Business Innovation and Skills,Intellectual Property Office,08/10/2014,Travel and subsistence UK,Innovation Directorate,Personal expenses name witheld,ER124173,1575.19,Not applicable,
Department for Business Innovation and Skills,Intellectual Property Office,24/10/2014,Travel and subsistence UK,Trade Marks Directorate,Personal expenses name witheld,52577,1800.00,Not applicable,
Department for Business Innovation and Skills,Intellectual Property Office,21/10/2014,Travel and subsistence UK,International Policy Directorate,Personal expenses name witheld,ER122885,2734.10,Not applicable,
Department for Business Innovation and Skills,Intellectual Property Office,31/10/2014,Travel and subsistence Overseas,International Policy Directorate,HRG UK,689040023,-549.83,Not applicable,
Department for Business Innovation and Skills,Intellectual Property Office,31/10/2014,Travel and subsistence Overseas,Business Support Directorate,HRG UK,240628611,2.57,Not applicable,
Department for Business Innovation and Skills,Intellectual Property Office,31/10/2014,Travel and subsistence Overseas,Innovation Directorate,HRG UK,240700988,2.57,Not applicable,
Department for Business Innovation and Skills,Intellectual Property Office,31/10/2014,Travel and subsistence Overseas,International Policy Directorate,HRG UK,240685346,2.57,Not applicable,
Department for Business Innovation and Skills,Intellectual Property Office,31/10/2014,Travel and subsistence Overseas,International Policy Directorate,HRG UK,240881883,2.57,Not applicable,
Department for Business Innovation and Skills,Intellectual Property Office,31/10/2014,Travel and subsistence Overseas,Business Support Directorate,HRG UK,240629052,2.57,Not applicable,
Department for Business Innovation and Skills,Intellectual Property Office,31/10/2014,Travel and subsistence Overseas,Patents Directorate,HRG UK,240552702,2.57,Not applicable,
Department for Business Innovation and Skills,Intellectual Property Office,31/10/2014,Travel and subsistence Overseas,Innovation Directorate,HRG UK,240685467,2.57,Not applicable,
Department for Business Innovation and Skills,Intellectual Property Office,31/10/2014,Travel and subsistence Overseas,"People, Property and Services Directorate",HRG UK,240752101,2.57,Not applicable,
Department for Business Innovation and Skills,Intellectual Property Office,31/10/2014,Travel and subsistence Overseas,Copyright and IP Enforcement Directorate,HRG UK,240582933,2.57,Not applicable,
Department for Business Innovation and Skills,Intellectual Property Office,31/10/2014,Travel and subsistence Overseas,Patents Directorate,HRG UK,240552511,2.57,Not applicable,
Department for Business Innovation and Skills,Intellectual Property Office,31/10/2014,Travel and subsistence Overseas,Patents Directorate,HRG UK,240552532,2.57,Not applicable,
Department for Business Innovation and Skills,Intellectual Property Office,31/10/2014,Travel and subsistence Overseas,International Policy Directorate,HRG UK,240782099,2.57,Not applicable,
Department for Business Innovation and Skills,Intellectual Property Office,31/10/2014,Travel and subsistence Overseas,International Policy Directorate,HRG UK,240815063,2.57,Not applicable,
Department for Business Innovation and Skills,Intellectual Property Office,31/10/2014,Travel and subsistence Overseas,Trade Marks Directorate,HRG UK,240700998,2.57,Not applicable,
Department for Business Innovation and Skills,Intellectual Property Office,31/10/2014,Travel and subsistence Overseas,Trade Marks Directorate,HRG UK,240569477,2.57,Not applicable,
Department for Business Innovation and Skills,Intellectual Property Office,31/10/2014,Travel and subsistence Overseas,Trade Marks Directorate,HRG UK,240879976,2.57,Not applicable,
Department for Business Innovation and Skills,Intellectual Property Office,31/10/2014,Travel and subsistence Overseas,Copyright and IP Enforcement Directorate,HRG UK,240684968,2.57,Not applicable,
Department for Business Innovation and Skills,Intellectual Property Office,31/10/2014,Travel and subsistence Overseas,Patents Directorate,HRG UK,240849310,2.57,Not applicable,
Department for Business Innovation and Skills,Intellectual Property Office,31/10/2014,Travel and subsistence Overseas,Trade Marks Directorate,HRG UK,240813986,2.57,Not applicable,
Department for Business Innovation and Skills,Intellectual Property Office,31/10/2014,Travel and subsistence Overseas,Patents Directorate,HRG UK,240553871,2.57,Not applicable,
Department for Business Innovation and Skills,Intellectual Property Office,31/10/2014,Travel and subsistence Overseas,Trade Marks Directorate,HRG UK,240568877,2.57,Not applicable,
Department for Business Innovation and Skills,Intellectual Property Office,31/10/2014,Travel and subsistence Overseas,International Policy Directorate,HRG UK,240815003,2.57,Not applicable,
Department for Business Innovation and Skills,Intellectual Property Office,31/10/2014,Travel and subsistence Overseas,International Policy Directorate,HRG UK,240830410,2.57,Not applicable,
Department for Business Innovation and Skills,Intellectual Property Office,31/10/2014,Travel and subsistence Overseas,Patents Directorate,HRG UK,240552533,2.57,Not applicable,
Department for Business Innovation and Skills,Intellectual Property Office,31/10/2014,Travel and subsistence Overseas,Patents Directorate,HRG UK,240552512,2.57,Not applicable,
Department for Business Innovation and Skills,Intellectual Property Office,31/10/2014,Travel and subsistence Overseas,Patents Directorate,HRG UK,240569109,2.57,Not applicable,
Department for Business Innovation and Skills,Intellectual Property Office,31/10/2014,Travel and subsistence Overseas,Innovation Directorate,HRG UK,240569135,2.57,Not applicable,
Department for Business Innovation and Skills,Intellectual Property Office,31/10/2014,Travel and subsistence Overseas,Patents Directorate,HRG UK,240880019,2.57,Not applicable,
Department for Business Innovation and Skills,Intellectual Property Office,31/10/2014,Travel and subsistence Overseas,International Policy Directorate,HRG UK,240772043,3.59,Not applicable,
Department for Business Innovation and Skills,Intellectual Property Office,31/10/2014,Travel and subsistence Overseas,Business Support Directorate,HRG UK,240742676,5.12,Not applicable,
Department for Business Innovation and Skills,Intellectual Property Office,31/10/2014,Travel and subsistence Overseas,Business Support Directorate,HRG UK,240742675,5.12,Not applicable,
Department for Business Innovation and Skills,Intellectual Property Office,31/10/2014,Travel and subsistence Overseas,Innovation Directorate,HRG UK,240701923,5.65,Not applicable,
Department for Business Innovation and Skills,Intellectual Property Office,31/10/2014,Travel and subsistence Overseas,International Policy Directorate,HRG UK,240595622,5.65,Not applicable,
Department for Business Innovation and Skills,Intellectual Property Office,31/10/2014,Travel and subsistence Overseas,International Policy Directorate,HRG UK,240612529,5.65,Not applicable,
Department for Business Innovation and Skills,Intellectual Property Office,31/10/2014,Travel and subsistence Overseas,International Policy Directorate,HRG UK,240612528,5.65,Not applicable,
Department for Business Innovation and Skills,Intellectual Property Office,31/10/2014,Travel and subsistence Overseas,International Policy Directorate,HRG UK,240881642,8.22,Not applicable,
Department for Business Innovation and Skills,Intellectual Property Office,31/10/2014,Travel and subsistence Overseas,Patents Directorate,HRG UK,240881641,8.22,Not applicable,
Department for Business Innovation and Skills,Intellectual Property Office,31/10/2014,Travel and subsistence Overseas,Business Support Directorate,HRG UK,240685388,8.22,Not applicable,
Department for Business Innovation and Skills,Intellectual Property Office,31/10/2014,Travel and subsistence Overseas,Patents Directorate,HRG UK,240557209,18.00,Not applicable,
Department for Business Innovation and Skills,Intellectual Property Office,31/10/2014,Travel and subsistence Overseas,Patents Directorate,HRG UK,240864319,32.88,Not applicable,
Department for Business Innovation and Skills,Intellectual Property Office,10/10/2014,Travel and subsistence Overseas,Patents Directorate,Personal expenses name witheld,ER124053,33.39,Not applicable,
Department for Business Innovation and Skills,Intellectual Property Office,01/10/2014,Travel and subsistence Overseas,Patents Directorate,Leasedrive Velo Rental Management Ltd,RHI01237808,37.94,Not applicable,
Department for Business Innovation and Skills,Intellectual Property Office,31/10/2014,Travel and subsistence Overseas,Patents Directorate,HRG UK,240860082,41.58,Not applicable,
Department for Business Innovation and Skills,Intellectual Property Office,01/10/2014,Travel and subsistence Overseas,Patents Directorate,Leasedrive Velo Rental Management Ltd,RHI01237812,42.88,Not applicable,
Department for Business Innovation and Skills,Intellectual Property Office,31/10/2014,Travel and subsistence Overseas,Trade Marks Directorate,HRG UK,165582958,42.96,Not applicable,
Department for Business Innovation and Skills,Intellectual Property Office,16/10/2014,Travel and subsistence Overseas,Patents Directorate,Leasedrive Velo Rental Management Ltd,RHI01251254,45.88,Not applicable,
Department for Business Innovation and Skills,Intellectual Property Office,09/10/2014,Travel and subsistence Overseas,Patents Directorate,Leasedrive Velo Rental Management Ltd,RHI01248624,46.63,Not applicable,
Department for Business Innovation and Skills,Intellectual Property Office,06/10/2014,Travel and subsistence Overseas,Copyright and IP Enforcement Directorate,Personal expenses name witheld,ER124155,47.76,Not applicable,
Department for Business Innovation and Skills,Intellectual Property Office,16/10/2014,Travel and subsistence Overseas,Trade Marks Directorate,Veezu Ltd T/A Dragon Taxis (Newport),2378,48.00,Not applicable,
Department for Business Innovation and Skills,Intellectual Property Office,21/10/2014,Travel and subsistence Overseas,Patents Directorate,Personal expenses name witheld,52579,55.50,Not applicable,
Department for Business Innovation and Skills,Intellectual Property Office,31/10/2014,Travel and subsistence Overseas,Innovation Directorate,HRG UK,842606103,59.46,Not applicable,
Department for Business Innovation and Skills,Intellectual Property Office,31/10/2014,Travel and subsistence Overseas,Innovation Directorate,HRG UK,842606102,59.46,Not applicable,
Department for Business Innovation and Skills,Intellectual Property Office,02/10/2014,Travel and subsistence Overseas,Innovation Directorate,Personal expenses name witheld,ER123959,63.50,Not applicable,
Department for Business Innovation and Skills,Intellectual Property Office,31/10/2014,Travel and subsistence Overseas,International Policy Directorate,HRG UK,240625309,64.01,Not applicable,
Department for Business Innovation and Skills,Intellectual Property Office,31/10/2014,Travel and subsistence Overseas,Patents Directorate,HRG UK,240776388,70.39,Not applicable,
Department for Business Innovation and Skills,Intellectual Property Office,31/10/2014,Travel and subsistence Overseas,Innovation Directorate,HRG UK,240653168,72.52,Not applicable,
Department for Business Innovation and Skills,Intellectual Property Office,20/10/2014,Travel and subsistence Overseas,Innovation Directorate,Personal expenses name witheld,ER125099,76.72,Not applicable,
Department for Business Innovation and Skills,Intellectual Property Office,28/10/2014,Travel and subsistence Overseas,Central Support,Personal expenses name witheld,ER125544,77.75,Not applicable,
Department for Business Innovation and Skills,Intellectual Property Office,08/10/2014,Travel and subsistence Overseas,International Policy Directorate,Personal expenses name witheld,ER124334,77.75,Not applicable,
Department for Business Innovation and Skills,Intellectual Property Office,31/10/2014,Travel and subsistence Overseas,Patents Directorate,HRG UK,240867303,87.35,Not applicable,
Department for Business Innovation and Skills,Intellectual Property Office,31/10/2014,Travel and subsistence Overseas,Patents Directorate,HRG UK,240871141,93.33,Not applicable,
Department for Business Innovation and Skills,Intellectual Property Office,07/10/2014,Travel and subsistence Overseas,Innovation Directorate,Personal expenses name witheld,ER123854,94.22,Not applicable,
Department for Business Innovation and Skills,Intellectual Property Office,31/10/2014,Travel and subsistence Overseas,Innovation Directorate,HRG UK,240653167,98.65,Not applicable,
Department for Business Innovation and Skills,Intellectual Property Office,31/10/2014,Travel and subsistence Overseas,Finance Directorate,HRG UK,240573638,103.52,Not applicable,
Department for Business Innovation and Skills,Intellectual Property Office,08/10/2014,Travel and subsistence Overseas,Trade Marks Directorate,Personal expenses name witheld,ER124197,106.27,Not applicable,
Department for Business Innovation and Skills,Intellectual Property Office,31/10/2014,Travel and subsistence Overseas,Innovation Directorate,HRG UK,240771891,116.61,Not applicable,
Department for Business Innovation and Skills,Intellectual Property Office,31/10/2014,Travel and subsistence Overseas,Innovation Directorate,HRG UK,240676952,116.61,Not applicable,
Department for Business Innovation and Skills,Intellectual Property Office,15/10/2014,Travel and subsistence Overseas,International Policy Directorate,Personal expenses name witheld,ER124895,126.41,Not applicable,
Department for Business Innovation and Skills,Intellectual Property Office,31/10/2014,Travel and subsistence Overseas,Copyright and IP Enforcement Directorate,Personal expenses name witheld,ER125777,131.16,Not applicable,
Department for Business Innovation and Skills,Intellectual Property Office,31/10/2014,Travel and subsistence Overseas,International Policy Directorate,HRG UK,240828624,131.96,Not applicable,
Department for Business Innovation and Skills,Intellectual Property Office,31/10/2014,Travel and subsistence Overseas,International Policy Directorate,HRG UK,240722299,137.07,Not applicable,
Department for Business Innovation and Skills,Intellectual Property Office,31/10/2014,Travel and subsistence Overseas,Patents Directorate,HRG UK,240692643,138.94,Not applicable,
Department for Business Innovation and Skills,Intellectual Property Office,31/10/2014,Travel and subsistence Overseas,Patents Directorate,HRG UK,240692395,138.94,Not applicable,
Department for Business Innovation and Skills,Intellectual Property Office,07/10/2014,Travel and subsistence Overseas,Trade Marks Directorate,Personal expenses name witheld,ER124196,140.21,Not applicable,
Department for Business Innovation and Skills,Intellectual Property Office,31/10/2014,Travel and subsistence Overseas,Innovation Directorate,HRG UK,240571580,142.18,Not applicable,
Department for Business Innovation and Skills,Intellectual Property Office,01/10/2014,Travel and subsistence Overseas,International Policy Directorate,M Fysh  QC,52546,150.72,Not applicable,
Department for Business Innovation and Skills,Intellectual Property Office,31/10/2014,Travel and subsistence Overseas,International Policy Directorate,HRG UK,240674859,155.48,Not applicable,
Department for Business Innovation and Skills,Intellectual Property Office,31/10/2014,Travel and subsistence Overseas,Copyright and IP Enforcement Directorate,HRG UK,240674868,155.48,Not applicable,
